Cogmind - Beta 16.1 @@@ ROGUE MODE // 2026.01.06 @ 21:47:56 Player: Boris Result: Destroyed by Y-72 Warden with Quantum Rifle Performance ------------- Evolutions (9) 4500 Regions Visited (28) 5600 Robots Destroyed (720) 3600 Value Destroyed (34193) 34193 Prototype IDs (82) 1640 Alien Tech Used (3) 600 Bonus (22215) 22215 TOTAL SCORE: 72348 Bonus ------- Triggered High Security 2000 High Alert Combat Kills 10949 Follower Combat Kills 2361 Hunted by Unchained 1000 Network Hubs Disabled 400 Met Data Miner 300 Met Zhirov 300 MAIN.C Attacked Warlord 500 Warlord Defense Kills 3352 Built Enhanced Grunts 300 A7 Reached Mainframe 300 Met R17 at Cetus 500 Found Hidden Lab 3000 Met R17 at Research 2000 Friendly Fire -5047 Cogmind --------- Core Integrity 0/1600 Matter 280/300 Energy 100/100 System Corruption 7% Temperature Cool (9) Movement Core (50) Location -1/Access Parts ------- > --- POWER (2) -------- (None) > --- PROPULSION (8) --- Advanced Medium Treads > --- UTILITY (11) ----- Experimental Optical Array Advanced Terrain Scan Processor Advanced Target Analyzer Graphene Brace > --- WEAPON (4) ------- (None) > --- INVENTORY (5) ---- Core Reset Matrix Potential Cannon Warp Cannon Vibroblade Peak State ------------ > --- POWER ------------ Heavy Antimatter Reactor Quantum Reactor > --- PROPULSION ------- Centrium Leg Centrium Leg Centrium Leg Centrium Leg Heavy Shield Leg > --- UTILITY ---------- Experimental Heat Sink Experimental Heat Sink Huge Storage Unit Experimental Optical Array Advanced Target Analyzer Experimental Core Analyzer Experimental Weapon Cycler Medium Regenerative Plating Graphene Brace Makeshift Hacking Suite Deep Network Scanner > --- WEAPON ----------- Enhanced Quantum Rifle Enhanced Quantum Rifle Enhanced Quantum Rifle Hypervelocity Railgun > --- INVENTORY -------- Particle Reactor Combat Linear Gravjet Advanced Power Amplifier Advanced Heat Sink Matter Compressor Experimental Core Analyzer Precision Matter Filter Experimental Weapon Cycler Advanced Transmission Jammer Advanced Force Field Hacking Suite Core Regenerator Core Reset Matrix Gamma Rifle Gamma Rifle Gamma Rifle Gamma Rifle Gamma Rifle Vortex Shotgun Potential Cannon Warp Cannon Neutron Missile Launcher Vibroblade [Rating: 204] Favorites ----------- Power Quantum Reactor Engine Improved Ion Engine Power Core Reinforced Fission Core Reactor Quantum Reactor Propulsion Centrium Heavy Treads Treads Centrium Heavy Treads Leg Centrium Leg Wheel Centrium Wheel Hover Unit Improved Antigrav System Flight Unit Field Propulsion Array Utility Huge Storage Unit Device Experimental Cooling System Storage Huge Storage Unit Processor Experimental Optical Array Hackware Advanced System Shield Protection Medium Regenerative Plating Weapon Advanced KE Penetrator Energy Gun Heavy Gatling Laser Energy Cannon Enhanced Nova Cannon Ballistic Gun Advanced KE Penetrator Ballistic Cannon Heavy Mass Driver Launcher Long-range Missile Launcher Special Weapon Advanced Remote Datajack Impact Weapon Flail Slashing Weapon Vibroblade Special Melee Weapon Advanced Datajack Build | -11 -10 -9 -8 -7 -7 -7 -7 -6 -6 -6 -6 -6 -6 -5 -5 -5 -5 -4 -4 -4 -4 -4 -3 -3 -3 -3 -2 -1 ------- Run | Yrd Mat Mat Mat Fac Low Low Dat Pro Fac Ext Cet Arc Hub Fac Upp Upp War Pro Fac Upp Upp Zhi Pro Res Arm Lab Res Acc Slots Evolved 18 | . . 2 2 2 . . . . 2 . . . . 2 . . . . 2 . . . . 2 . . 2 2 Power 1 | . . . . . . . . . . . . . . . . . . . 1 . . . . . . . . . Propulsion 6 | . . . 1 . . . . . 1 . . . . . . . . . . . . . . 2 . . . 2 Utility 9 | . . . 1 2 . . . . 1 . . . . 2 . . . . 1 . . . . . . . 2 . Weapon 2 | . . 2 . . . . . . . . . . . . . . . . . . . . . . . . . . Parts Attached 369 | 6 3 24 36 22 2 3 . 4 11 6 16 11 12 19 2 1 10 1 28 2 1 6 . 13 38 6 74 12 Power 26 | 1 1 1 2 1 . 1 . . 2 . 1 1 1 1 . . . . 2 . 1 1 . 1 1 1 6 . Engine 9 | 1 1 1 2 1 . 1 . . 2 . . . . . . . . . . . . . . . . . . . Core 2 | . . . . . . . . . . . . 1 . . . . . . 1 . . . . . . . . . Reactor 15 | . . . . . . . . . . . 1 . 1 1 . . . . 1 . 1 1 . 1 1 1 6 . Propulsion 90 | 2 . 7 14 5 1 . . . 5 . 4 2 . . . . 3 . 7 . . 1 . 5 8 1 19 6 Treads 52 | 2 . 6 12 4 1 . . . 3 . 4 2 . . . . . . 5 . . . . 2 6 1 3 1 Leg 19 | . . . . . . . . . . . . . . . . . 1 . . . . . . . 2 . 16 . Wheel 8 | . . . 1 . . . . . 2 . . . . . . . . . 2 . . . . 3 . . . . Hover 5 | . . . . . . . . . . . . . . . . . 1 . . . . . . . . . . 4 Flight 6 | . . 1 1 1 . . . . . . . . . . . . 1 . . . . 1 . . . . . 1 Utility 129 | 1 . 5 9 8 . . . 1 3 4 7 3 10 5 2 1 4 1 9 2 . 4 . 2 17 2 26 3 Device 72 | . . . 3 4 . . . 1 1 1 2 3 6 3 2 1 3 . 5 2 . 2 . 1 14 2 15 1 Storage 6 | 1 . 2 . . . . . . . . 1 . . . . . . . . . . 1 . . . . 1 . Processor 18 | . . . 1 4 . . . . 1 . . . 1 . . . 1 1 3 . . . . . 2 . 3 1 Hackware 13 | . . 1 1 . . . . . . 2 . . 1 2 . . . . 1 . . . . 1 1 . 2 1 Protection 20 | . . 2 4 . . . . . 1 1 4 . 2 . . . . . . . . 1 . . . . 5 . Artifact . | . . . . . . . . . . . . . . . . . . . . . . . . . . . . . Weapon 124 | 2 2 11 11 8 1 2 . 3 1 2 4 5 1 13 . . 3 . 10 . . . . 5 12 2 23 3 Energy Gun 45 | 1 2 1 2 . . . . 3 . . 1 . . 4 . . 1 . . . . . . 2 8 . 20 . Energy Cannon 7 | . . . . . . . . . . . . . . 1 . . . . . . . . . . 3 2 1 . Ballistic Gun 55 | 1 . 9 8 4 1 2 . . 1 2 3 4 . 7 . . 2 . 5 . . . . 3 1 . 2 . Ballistic Cannon 2 | . . . . . . . . . . . . . . . . . . . 2 . . . . . . . . . Launcher 7 | . . . . 2 . . . . . . . . 1 1 . . . . 3 . . . . . . . . . Special Weapon 2 | . . . . . . . . . . . . . . . . . . . . . . . . . . . . 2 Impact Weapon 1 | . . 1 . . . . . . . . . . . . . . . . . . . . . . . . . . Slashing Weapon 2 | . . . . 2 . . . . . . . . . . . . . . . . . . . . . . . . Piercing Weapon . | . . . . . . . . . . . . . . . . . . . . . . . . . . . . . Special Melee Weapon 3 | . . . 1 . . . . . . . . 1 . . . . . . . . . . . . . . . 1 Unidentified Prototypes 59 | . . 2 4 6 . . . . . . 7 . 3 4 . . 8 . 3 1 . 7 . 3 6 2 3 . Corrupted Parts 10 | . . . . . . . . . . . 1 4 . . . . . . . . . . . . 1 3 1 . System Corruption 28 | . . . . . . . . . . . 2 9 . . . . . . . . . . . . 5 6 6 . Parts Lost 109 | . . 6 5 7 1 . . 1 4 2 2 . 5 3 . . . . 10 . . . . . 10 . 39 14 Power 11 | . . 1 1 1 . . . . 1 . . . 1 1 . . . . 1 . . . . . 1 . 3 . Propulsion 29 | . . 2 . 2 1 . . 1 1 . 2 . . . . . . . 3 . . . . . 1 . 11 5 Utility 32 | . . 1 3 1 . . . . 1 . . . 2 . . . . . 1 . . . . . 4 . 12 7 Weapon 37 | . . 2 1 3 . . . . 1 2 . . 2 2 . . . . 5 . . . . . 4 . 13 2 Highest Loss Streak 14 | . . 3 2 7 1 . . 1 2 1 2 . 3 3 . . . . 2 . . . . . 5 . 9 14 To Critical Strikes 6 | . . . . 1 . . . . . . 2 . 1 . . . . . 2 . . . . . . . . . Average Backups 21 | 1 4 16 23 21 23 23 24 23 23 23 23 21 22 20 21 22 21 22 21 23 24 24 25 24 23 19 20 3 Power . | . . . . . . 1 1 1 1 1 . 1 . . 1 1 1 1 . 1 1 2 2 1 1 . . . Propulsion 2 | . . 5 7 1 . . . . 1 2 1 1 2 1 2 2 1 1 . 1 1 . . . 1 . 2 . Utility 11 | . . 3 9 12 13 13 15 15 15 14 12 11 13 11 11 11 11 13 11 12 13 12 13 13 12 13 9 . Weapon 6 | . 3 5 4 5 9 9 8 7 5 6 8 6 6 6 7 6 6 6 8 9 8 8 9 7 7 3 6 2 Tool/Special . | . . . . . . . . . . . . . . . . . . . . . . . . . . . . . Unused Backups 83 | . . 3 13 4 1 3 . 1 4 2 8 1 1 8 2 . 3 . 3 1 3 1 . . 8 3 9 1 Power 7 | . . . . 1 . . . . . . 1 . . . . . 1 . . . 1 1 . . . . 2 . Propulsion 10 | . . . 6 . . . . . . . . 1 . . . . . . . . . . . . 2 . 1 . Utility 36 | . . 1 2 2 1 1 . 1 3 2 3 . 1 3 1 . 1 . 3 . . . . . 3 2 6 . Weapon 26 | . . 2 5 1 . 2 . . 1 . 4 . . 3 1 . . . . 1 2 . . . 3 1 . . Tool/Special 4 | . . . . . . . . . . . . . . 2 . . 1 . . . . . . . . . . 1 Average Slot Usage (%) 88 | . 82 98 98 99 99 100 100 98 95 99 90 85 85 87 88 87 87 85 83 71 68 58 67 76 91 85 91 36 Engine 2 | . 13 10 8 6 7 7 7 7 5 6 3 . . . . . . . . . . . . . . . . . Reactor 3 | . . . . . . . . . . . 2 6 5 4 5 5 5 5 4 5 5 5 5 6 8 9 7 . Treads 16 | . 28 21 27 22 22 23 23 21 20 26 17 12 13 11 11 11 10 11 10 15 15 15 15 13 21 22 6 1 Leg 1 | . . . . . . . . . . . . . . . . . . . . . . . . . . . 15 . Device 7 | . . . . 2 7 7 7 7 2 3 6 9 3 11 11 10 10 10 9 6 5 5 9 8 11 19 16 8 Storage 5 | . 14 11 9 7 7 7 7 7 6 6 6 6 6 5 5 5 5 5 5 5 5 5 5 4 4 4 3 . Processor 13 | . . . 3 22 23 23 23 23 26 21 20 20 18 11 11 11 11 16 14 15 15 15 15 14 14 14 13 12 Hackware 6 | . . 8 5 . . . . . . 5 . . 4 10 11 11 11 5 9 10 10 6 5 4 5 4 6 2 Protection 3 | . . 1 8 5 . . . . 3 1 5 3 4 4 4 4 4 2 5 1 . 1 . . 3 . 2 . Energy Gun 4 | . 23 . . . . . . . . . . . . 3 17 16 6 17 6 . . . . 5 10 1 11 . Ballistic Gun 16 | . 3 43 35 29 30 29 30 29 25 25 25 23 25 16 5 5 12 4 10 . . . . 6 3 4 2 . Ballistic Cannon 1 | . . . . . . . . . . . . . . . . . . . 1 10 10 1 9 2 . . . . Peak Build Rating 204 | 7 7 19 35 63 61 63 59 68 70 67 107 117 130 139 135 136 146 146 161 151 151 153 153 165 168 169 204 140 Average Rating 107 | 5 6 15 30 41 59 59 59 58 65 63 90 109 117 132 130 132 138 144 149 148 150 130 152 158 154 149 183 72 On Entrance 98 | . 7 7 19 33 63 61 59 59 55 67 65 102 115 98 134 135 132 142 144 148 151 150 151 153 165 166 169 93 Avg Prop Armor Cover (%) 16 | . . . . . . . . . 16 . . . . . . . . . . . . . . 8 1 . 29 24 Naked Turns . | . . . . . . . . . . . . . . . . . . . . . . . . . . . . . Heaviest Build 179 | 12 12 97 107 109 109 109 109 109 112 118 126 133 137 136 142 142 135 136 174 174 159 167 167 165 179 158 174 14 Greatest Support 210 | 40 40 40 60 60 68 68 68 68 80 80 160 160 160 160 160 160 160 160 160 135 135 135 130 163 210 183 191 15 Greatest Overweight (x) 9 | . 2 2 2 1 2 1 1 2 6 1 1 1 . . . . 1 . 9 1 1 1 1 8 1 . 1 1 Average Overweight (x) . | . . 1 1 1 1 1 1 1 1 1 . . . . . . . . . 1 . . 1 1 . . . . Largest Inventory Capacity 25 | 8 8 25 25 25 25 25 25 25 25 25 25 25 25 25 25 25 25 25 25 25 25 25 25 25 25 25 25 5 Average Capacity 24 | 6 8 20 25 25 25 25 25 25 25 25 25 25 25 25 25 25 25 25 25 25 25 25 25 25 25 25 24 5 Most Carried 25 | 3 7 25 25 25 25 25 25 25 25 25 25 25 25 25 25 25 25 25 25 25 25 25 25 25 25 25 25 5 Average Carried 23 | 2 5 16 24 23 24 24 25 24 24 24 24 23 24 23 24 24 24 24 24 24 24 24 25 24 24 21 22 4 Final Capacity 25 | 8 8 25 25 25 25 25 25 25 25 25 25 25 25 25 25 25 25 25 25 25 25 25 25 25 25 25 5 5 Final Carried 25 | 3 6 25 25 25 25 25 25 24 25 25 25 25 25 25 24 25 25 25 25 25 25 25 25 25 25 25 5 5 Class Distribution -------------------- 43% | Scavenger-Gunner 15% | Gunner 14% | Scavenger-Tank 10% | Scavenger-Skirmisher 5% | Commander-Gunner 3% | Scavenger-Mutant Dominant Class ---------------- Mutant | -10/Materials Scavenger-Gunner | -9/Materials Scavenger-Tank | -8/Materials Scavenger-Gunner | -7/Factory Gunner | -7/Lower Caves Gunner | -7/Lower Caves Gunner | -7/Data Miner Gunner | -6/Proximity Caves Scavenger-Gunner | -6/Factory Scavenger-Gunner | -6/Extension Commander-Gunner | -6/Cetus Commander-Gunner | -6/Archives Scavenger-Gunner | -6/Hub_04(d) Scavenger-Gunner | -5/Factory Scavenger-Gunner | -5/Upper Caves Scavenger-Gunner | -5/Upper Caves Scavenger-Gunner | -5/Warlord Scavenger-Gunner | -4/Proximity Caves Scavenger-Gunner | -4/Factory Scavenger-Skirmisher | -4/Upper Caves Scavenger-Skirmisher | -4/Upper Caves Scavenger-Mutant | -4/Zhirov Scavenger-Skirmisher | -3/Proximity Caves Scavenger-Skirmisher | -3/Research Scavenger-Tank | -3/Armory Scavenger-Mutant | -3/Lab Scavenger-Gunner | -2/Research Mutant | -1/Access Resources | -11 -10 -9 -8 -7 -7 -7 -7 -6 -6 -6 -6 -6 -6 -5 -5 -5 -5 -4 -4 -4 -4 -4 -3 -3 -3 -3 -2 -1 ----------- Run | Yrd Mat Mat Mat Fac Low Low Dat Pro Fac Ext Cet Arc Hub Fac Upp Upp War Pro Fac Upp Upp Zhi Pro Res Arm Lab Res Acc Matter Collected 24362 | 275 73 1112 1853 1160 444 198 . 611 756 1057 681 583 976 2888 120 377 1454 269 2471 384 382 118 265 451 1623 41 3582 158 Remotely 2604 | . . . 163 453 . . . . . . 68 . 258 783 . . 879 . . . . . . . . . . . Salvage Created 39965 | 46 71 1815 2129 1638 627 181 . 677 1340 915 483 440 2857 5393 79 287 1326 839 5698 329 377 135 229 493 2255 . 9079 227 Parts 1923 | 3 7 125 133 86 32 8 . 29 73 58 38 42 151 207 5 10 47 40 220 9 13 4 10 22 144 . 392 15 Haulers Intercepted 24 | . . 5 5 1 . . . . . . . . 1 4 . . . . 4 . . . . 1 . . 3 . Recyclers Shooed 26 | 1 . 1 1 2 . . . . 2 . . . . 8 . . . . 2 . . . . . . . 9 . Parts Field Recycled . | . . . . . . . . . . . . . . . . . . . . . . . . . . . . . Retrieved Matter . | . . . . . . . . . . . . . . . . . . . . . . . . . . . . . Parts Self-Destructed 200 | . . . . . 31 7 . 27 . . . . . . 5 17 . 78 . 9 13 3 10 . . . . . Prevented 5 | . . . . . . . . . . . . . . . . . . 5 . . . . . . . . . . Parts Restored . | . . . . . . . . . . . . . . . . . . . . . . . . . . . . . Kills | -11 -10 -9 -8 -7 -7 -7 -7 -6 -6 -6 -6 -6 -6 -5 -5 -5 -5 -4 -4 -4 -4 -4 -3 -3 -3 -3 -2 -1 ------- Run | Yrd Mat Mat Mat Fac Low Low Dat Pro Fac Ext Cet Arc Hub Fac Upp Upp War Pro Fac Upp Upp Zhi Pro Res Arm Lab Res Acc Combat Hostiles Destroyed 523 | . 1 35 34 29 14 5 . 11 16 14 4 1 23 71 1 3 27 18 59 6 7 . 5 2 29 . 105 3 Melee 6 | . . . . . . . . . . . . . . . . . . . . . . . . . . . 3 3 Guns 409 | . 1 35 34 22 14 5 . 11 16 14 4 1 23 65 1 3 20 18 47 . . . . 2 14 . 59 . Cannons 34 | . . . . . . . . . . . . . . . . . . . 5 6 7 . 5 . 8 . 3 . AOE 51 | . . . . 7 . . . . . . . . . 4 . . 7 . 7 . . . . . 2 . 24 . Classes Destroyed 28 | 1 2 8 3 5 . 1 . 1 . . . . . . . . 3 1 . 1 . . 1 . . . 1 . Worker 43 | . . 3 2 2 . . . . . . . . 9 9 . . . . 8 . . . . 1 . . 9 . Builder 27 | . 1 1 1 1 . . . . 1 . . . 7 3 . . . . 2 . . . . . . . 9 1 Tunneler 9 | 2 . . 1 . . . . . . . . . 1 . . . . . 1 . . . . 1 . . 3 . Hauler 24 | . . 5 5 1 . . . . . . . . 1 4 . . . . 4 . . . . 1 . . 3 . Recycler 35 | . . 2 1 2 . . . . 3 . . . 5 5 . . . . 9 . . . . 1 . . 7 . Carrier 1 | . . . . 1 . . . . . . . . . . . . . . . . . . . . . . . . Minesweeper 2 | . . . . . . 1 . 1 . . . . . . . . . . . . . . . . . . . . Mechanic 6 | . . . . 1 . . . . . . . . 2 1 . . 1 . 1 . . . . . . . . . Operator 20 | . . 2 1 1 . . . . 1 . . 7 1 . . . . . 2 . . . . . 2 . 2 1 Drone 5 | . . . . . . . . . . . . . . . . . . 2 . . . . 2 . . . 1 . Watcher 22 | . . 1 2 1 . . . . 1 . . . 2 3 . . . . 7 . . . . 1 1 . 3 . Swarmer 69 | . . 10 4 3 5 4 . 1 7 2 . . . . . . 3 3 . 4 1 . . . 3 . 19 . Saboteur 1 | . . . . . . . . . . . . . . . . . . . . . . . . . . . 1 . Grunt 212 | . 1 16 14 12 4 . . 8 5 8 . . 10 45 . . 12 6 27 . 4 . . 1 1 . 38 . Brawler 21 | . . . 2 1 2 . . . . . . . 2 2 . . 3 . 1 . 1 . . . . . 7 . Duelist 11 | . . 1 . . 1 . . 2 . . . . . . . . . 1 1 . . . . . 3 . 2 . Protector 10 | . . . . 2 . . . . . . . . 1 3 . . 2 . . . . . . . . . 2 . Sentry 56 | . . 8 11 3 2 . . 1 1 2 . 1 5 5 1 1 . . 7 1 1 . 1 . 2 . 3 . Demolisher 1 | . . . . . . . . . . . . . . . . . 1 . . . . . . . . . . . Specialist 7 | . . . . 1 . . . . . . . . . . . . . 3 2 . . . . . 1 . . . Hunter 42 | . . . 2 5 . . . . . 1 . . . 7 . 2 . 1 10 . . . . . 5 . 9 . Programmer 65 | . . . . 2 . 1 . . 1 . . . 1 9 . . 2 2 8 . . . 2 . 11 . 23 3 Heavy 7 | . . . 1 . . . . . 2 . . . . . . . . . 2 . . . . . 1 . 1 . Behemoth 4 | . . . . . . . . 1 . 1 . . 1 . . . . . 1 . . . . . . . . . Armor Guard 2 | . . . . . . . . . . . . . . . . . . . . . . . . . 2 . . . Cetus Guard 4 | . . . . . . . . . . . 4 . . . . . . . . . . . . . . . . . Lightning 3 | . . . . . . . . . . . . . 3 . . . . . . . . . . . . . . . Striker 3 | . . . . . . . . . . . . . . . . . 3 . . . . . . . . . . . Executioner 2 | . . . . . . . . . . . . . . . . . 1 . . . . . . 1 . . . . Decomposer 5 | . . . . . . . . . . . . . . . . 3 . . . . 2 . . . . . . . Packrat 2 | . . . . . . . . . . . . . . . . . . . . 2 . . . . . . . . Samaritan 1 | . . . . . . . . . . . . . . . . . . . . . . . 1 . . . . . Thug 1 | . . . . . . . . . . . . . . . . . 1 . . . . . . . . . . . Savage 3 | . . . . . . 1 . . . . 1 . . . . 1 . . . . . . . . . . . . Butcher 1 | . . . . . . . . . . . . 1 . . . . . . . . . . . . . . . . Mutant 1 | . . . . . . . . . . . . . . . . . . . . 1 . . . . . . . . Best Kill Streak 25 | 2 1 5 11 17 7 4 . 3 7 3 4 3 25 23 1 1 14 5 11 4 4 . 3 2 6 . 23 2 Combat Bots Only 17 | . 1 5 11 8 7 4 . 3 4 3 4 1 9 17 1 1 13 5 8 4 4 . 3 1 5 . 15 2 Max Kills in Single Turn 10 | 1 1 2 3 7 2 2 . 2 2 1 1 2 10 3 1 1 3 2 3 2 2 . 1 2 2 . 5 1 Gunslinging 1 | . . 1 1 . 1 1 . . 1 . . . 1 1 . . 1 1 1 . . . . . . . 1 . Exploded 5 | . . . . 4 . . . . . . . . . 2 . . 2 . 2 . . . . . 2 . 5 . Melee 1 | . . . . . . . . . . . . . . . . . . . . . . . . . . . 1 1 Uniques/NPCs Destroyed 1 | . . . . . . . . . . . 1 . . . . . . . . . . . . . . . . . A7 (-6/Cetus) Combat | -11 -10 -9 -8 -7 -7 -7 -7 -6 -6 -6 -6 -6 -6 -5 -5 -5 -5 -4 -4 -4 -4 -4 -3 -3 -3 -3 -2 -1 -------- Run | Yrd Mat Mat Mat Fac Low Low Dat Pro Fac Ext Cet Arc Hub Fac Upp Upp War Pro Fac Upp Upp Zhi Pro Res Arm Lab Res Acc Hostile Shots Fired 3109 | . 20 139 112 215 40 7 . 54 89 117 12 4 199 350 . 12 69 30 534 21 . . 2 13 220 . 693 157 Missed 935 | . 7 43 33 73 10 3 . 21 31 36 1 1 56 81 . 4 22 6 187 4 . . . 5 40 . 213 58 Deflected 9 | . . . . . . . . . . . . . . . . . . . . . . . . . . . 9 . Hits 2174 | . 13 96 79 142 30 4 . 33 58 81 11 3 143 269 . 8 47 24 347 17 . . 2 8 180 . 480 99 Melee 26 | . . 2 2 . 1 . . . . . . . 2 2 . . . . 7 . . . . . 10 . . . Projectile 2148 | . 13 94 77 142 29 4 . 33 58 81 11 3 141 267 . 8 47 24 340 17 . . 2 8 170 . 480 99 AOE 6 | . . . . . . 1 . . . . . . . . . . 3 . 1 . . . . . . . . 1 Critical Strikes 111 | . . 1 5 7 . . . 2 2 1 2 . 13 6 . . 5 . 16 1 . . . 3 12 . 27 8 Actively Blocked 18 | . . . . . . . . . . . . . . . . . . . 2 . . . . . 1 . 7 8 Part Disruptions 5 | . . . . . . . . . . . . . . 1 . . . . . . . . . . 1 . 2 1 Damage Taken 37669 | . 130 1309 1299 1408 274 97 . 390 677 896 297 79 2438 4944 . 92 633 276 4806 288 . . 48 289 4312 . 10326 2361 Core 4603 | . 20 147 213 127 20 . . 45 80 62 39 . 232 382 . 6 48 27 296 . . . . 31 274 . 929 1625 Absorbed by Shields 5343 | . . . . 256 116 20 . 92 103 220 65 . . . . 38 511 185 1468 72 . . . . 816 . 1381 . Reduced by Siege Mode 838 | . . . . . . . . . . . . . 99 296 . . . . 281 . . . 12 . 144 . 6 . Ignored by Resistances 663 | . . . . . . . . . . . . . 663 . . . . . . . . . . . . . . . Regen/Repaired (Parts) 6834 | . . 134 97 . . . . . 109 . 83 88 154 3468 235 11 879 31 975 29 . . . . 351 . 190 . Core Remaining (%) 68 | 100 92 63 61 . . . . 72 . . . . 51 . . . . 53 . . . . 74 . . 67 53 . Volleys Fired 1238 | 5 13 89 85 56 16 11 . 25 42 44 27 28 47 126 1 13 46 25 131 13 10 . 9 16 104 24 231 1 Largest 4 | 2 2 4 4 4 4 4 . 4 4 4 4 4 4 4 3 4 4 4 4 2 2 . 2 4 4 1 4 1 Hottest 356 | 70 80 120 101 101 93 106 . 235 80 91 240 116 138 335 300 335 195 335 268 130 130 . 130 243 356 120 338 100 Shots Fired 3992 | 10 26 356 334 197 61 44 . 100 165 176 98 94 164 446 4 40 146 82 430 25 23 . 20 39 236 23 652 1 Gun 3754 | 10 26 356 334 193 61 44 . 100 165 176 98 94 161 440 4 40 130 82 404 . . . . 39 171 16 610 . Cannon 181 | . . . . . . . . . . . . . . . . . . . 13 25 23 . 20 . 62 7 30 1 Launcher 57 | . . . . 4 . . . . . . . . 3 6 . . 16 . 13 . . . . . 3 . 12 . Special . | . . . . . . . . . . . . . . . . . . . . . . . . . . . . . Kinetic 2854 | 5 1 352 334 193 61 44 . 88 165 176 97 94 161 319 1 13 126 25 295 25 23 . 20 30 63 16 127 . Thermal 767 | 5 1 . . . . . . 12 . . 1 . . 121 3 27 4 57 129 . . . . 9 100 7 290 1 Explosive 50 | . . . . 4 . . . . . . . . 3 6 . . 16 . 6 . . . . . 3 . 12 . Electromagnetic 294 | . 24 4 . . . . . . . . . . . . . . . . . . . . . . 70 . 196 . Entropic 27 | . . . . . . . . . . . . . . . . . . . . . . . . . . . 27 . Robot Hit Streak 46 | 3 4 16 22 16 14 7 . 20 12 46 10 11 22 30 5 14 20 17 43 6 5 . 5 6 30 . 20 . Robot Miss Streak 7 | 2 6 4 5 5 2 3 . 7 3 3 3 3 3 4 1 2 5 5 4 3 1 . 6 2 2 . 6 . Penetration Max 2 | . . . 1 . . . . . . . 1 1 1 2 . . 1 . 2 1 1 . . 1 1 . 2 . Secondary Targets 106 | . . 7 10 2 3 2 . 4 4 1 2 . 8 16 . . 7 3 13 . . . . . 2 . 22 . Max Gunslinging Chain 2 | . . 1 1 1 1 1 . 1 1 1 1 . 2 2 . . 2 1 1 . . . . . 1 . 1 . Shots Hit Robots 2665 | 5 9 217 196 139 46 26 . 70 103 125 73 66 103 331 3 24 84 56 325 11 11 2 7 13 163 . 443 14 Core Hits 1699 | 2 4 87 89 109 37 20 . 65 51 45 33 31 104 238 4 12 92 49 245 8 9 1 6 12 67 . 272 7 Critical Kills 85 | . . 1 1 . . . . 1 . 1 2 1 15 23 . 1 6 1 11 . . . . 4 3 . 14 . Critical Parts Destroyed 94 | . . 1 . . . . . 1 . 3 2 1 10 36 . . 4 1 11 . . . . . 4 . 20 . Critical Strikes 223 | . . 2 1 . . . . 2 . 4 5 2 26 59 . 1 10 2 23 1 1 . 2 5 13 . 62 2 Burn 6 | . . . . . . . . . . . . . . . . . . . . . . . . . . . 6 . Meltdown 1 | . . . . . . . . . . . . . . . . . . . . . . . . . 1 . . . Destroy 185 | . . 2 1 . . . . 2 . 4 5 2 26 59 . 1 10 2 22 . . . . 5 9 . 35 . Blast 5 | . . . . . . . . . . . . . . . . . . . 1 1 1 . 2 . . . . . Corrupt 19 | . . . . . . . . . . . . . . . . . . . . . . . . . 3 . 16 . Sever 3 | . . . . . . . . . . . . . . . . . . . . . . . . . . . 1 2 Detonate 4 | . . . . . . . . . . . . . . . . . . . . . . . . . . . 4 . Melee Attacks 104 | . . 1 1 1 . 9 . 7 2 5 . 1 2 11 . 1 3 1 3 . . 5 . 2 1 . 24 24 Impact 2 | . . 1 1 . . . . . . . . . . . . . . . . . . . . . . . . . Slashing 101 | . . . . 1 . 9 . 7 2 5 . . 2 11 . 1 3 1 3 . . 5 . 2 1 . 24 24 Piercing . | . . . . . . . . . . . . . . . . . . . . . . . . . . . . . Sneak Attacks 14 | . . 1 . . . . . 1 . . . 1 . 1 . . . . 1 . . . . . . . 6 3 Combat Hostiles . | . . . . . . . . . . . . . . . . . . . . . . . . . . . . . Follow-up Attacks . | . . . . . . . . . . . . . . . . . . . . . . . . . . . . . Damage Inflicted 89041 | 65 151 2949 3400 4066 860 543 . 1499 2168 2469 1730 1500 4969 12254 75 529 5357 1418 13536 857 1008 201 638 458 5774 . 19629 938 Guns 65478 | 65 151 2831 3248 2280 860 543 . 1395 2168 2407 1730 1500 3584 10759 75 529 2968 1418 10545 . . . . 458 3124 . 12840 . Cannons 5722 | . . . . . . . . . . . . . . . . . . . 712 825 1008 . 638 . 2143 . 396 . Explosions 14513 | . . . . 1786 . . . . . . . . 1293 1317 . . 2387 . 2058 . . . . . 507 . 5165 . Melee 2786 | . . 82 . . . . . 104 . . . . 51 101 . . . . 125 . . 201 . . . . 1190 932 Ramming 542 | . . 36 152 . . . . . . 62 . . 41 77 . . 2 . 96 32 . . . . . . 38 6 Kinetic 46964 | 40 . 2806 3248 2280 860 543 . 1096 2168 2407 1730 1500 3584 7462 . 212 2878 321 7947 825 1008 . 638 309 1103 . 1999 . Thermal 19673 | 25 . . . . . . . 299 . . . . 102 3297 75 317 90 1097 3861 . . . . 149 2825 . 7536 . Explosive 11361 | . . . . 1786 . . . . . . . . 253 1317 . . 2387 . 1464 . . . . . 507 . 3647 . Electromagnetic 6502 | . 151 25 . . . . . . . . . . 938 . . . . . 43 . . . . . 1339 . 4006 . Impact 82 | . . 82 . . . . . . . . . . . . . . . . . . . . . . . . . . Slashing 2704 | . . . . . . . . 104 . . . . 51 101 . . . . 125 . . 201 . . . . 1190 932 Piercing . | . . . . . . . . . . . . . . . . . . . . . . . . . . . . . Entropic 1213 | . . . . . . . . . . . . . . . . . . . . . . . . . . . 1213 . Highest Corruption 25 | . . . . . . . . . 1 1 3 3 13 6 3 3 3 1 6 6 6 6 7 1 17 23 25 7 Average Corruption 4 | . . . . . . . . . 1 1 1 1 7 2 3 3 3 1 2 6 6 6 6 1 4 17 9 5 Corruption Purged 30 | . . . . . . . . . . . . 12 . 10 . . . . 3 . . . . . 1 . 3 1 Corruption Blocked . | . . . . . . . . . . . . . . . . . . . . . . . . . . . . . Effects 460 | . . . . . . . . . 1 21 10 2 8 29 26 22 . 13 31 43 36 9 21 5 36 35 106 6 Message Errors 108 | . . . . . . . . . . 5 4 1 2 7 8 3 . 4 11 10 9 2 2 . 6 12 22 . Matter Fused 117 | . . . . . . . . . . 4 3 . 2 8 8 10 . 4 7 6 8 2 9 2 15 5 24 . Heat Flow Errors 55 | . . . . . . . . . . 2 1 . . 3 3 2 . 1 3 8 3 1 3 2 4 2 14 3 Energy Discharges 61 | . . . . . . . . . 1 2 1 . 1 4 2 1 . 1 4 6 8 2 2 . 1 9 16 . Parts Rejected 5 | . . . . . . . . . . . . . . . . . . 1 1 . . . . . . . 3 . Parts Fused 5 | . . . . . . . . . . 1 . . . 1 . . . 1 . . . . . . 1 1 . . Data Loss (minor) 52 | . . . . . . . . . . 5 1 1 . 3 2 6 . 1 2 8 3 2 2 . 3 3 8 2 Data Loss (major) 11 | . . . . . . . . . . . . . 1 . 2 . . . . 3 1 . 1 . . 1 2 . Misfires 19 | . . . . . . . . . . 2 . . 1 2 1 . . . . 1 3 . 2 1 3 . 3 . Alerts 8 | . . . . . . . . . . . . . . 1 . . . . 2 1 1 . . . . 1 1 1 Weapon Failures 19 | . . . . . . . . . . . . . 1 . . . . . 1 . . . . . 3 1 13 . Overload Shots 1 | . . . . . . . . . . . 1 . . . . . . . . . . . . . . . . . Overflow Damage 1452 | . . 62 . 10 . . . 19 . . . . 53 91 . . . . 293 26 60 68 46 . 173 . 522 29 Projectiles 478 | . . . . . . . . . . . . . . . . . . . 183 . 60 . 46 . 118 . 71 . Explosions 357 | . . . . 10 . . . . . . . . 53 30 . . . . 5 . . . . . 55 . 204 . Melee 617 | . . 62 . . . . . 19 . . . . . 61 . . . . 105 26 . 68 . . . . 247 29 Knockbacks 8 | . . . 2 . . . . . . 1 . . . 1 . . . . 2 . 1 . 1 . . . . . Impact 4 | . . . 2 . . . . . . 1 . . . 1 . . . . . . . . . . . . . . Kinetic 4 | . . . . . . . . . . . . . . . . . . . 2 . 1 . 1 . . . . . Secondary . | . . . . . . . . . . . . . . . . . . . . . . . . . . . . . Self-Inflicted Damage 504 | . . . . . . . . . . . . . 109 . . . . . 100 . . . . . 74 . 219 2 Shots 9 | . . . . . . . . . . . . . 2 . . . . . 2 . . . . . 1 . 4 . Rammed 43 | . . 7 11 . . . . . . 5 . . 3 3 . . 1 . 8 . . . . . . . . 5 Targets Rammed 50 | . . 7 12 . . . . . . 5 . . 4 3 . . 1 . 8 2 . . . . . . 3 5 Kicked 3 | . . . . . . . . . . . . . . . . . . . . . . . . . . . 3 . Crushed 4 | . . . 1 . . . . . . . . . 1 . . . . . . 2 . . . . . . . . Highest Temperature 625 | 18 168 102 338 244 133 102 . 222 79 255 248 255 386 625 281 247 143 424 303 235 211 259 260 191 419 . 443 192 Average Temperature 86 | 9 58 29 86 76 43 43 . 77 25 72 98 82 94 88 125 106 24 102 87 81 32 139 57 57 144 . 125 85 Received Heat Transfer 6161 | . 72 333 441 452 63 11 . 147 151 189 . 9 438 1482 . . 78 10 420 57 . . . 9 425 . 1068 306 Effects 23 | . . . 1 . . . . . . 1 2 . . 4 1 . . . 2 . . 3 . . 2 . 7 . Shutdowns 2 | . . . . . . . . . . . . . . . . . . . . . . . . . . . 2 . Energy Bleed 7 | . . . 1 . . . . . . 1 1 . . 1 1 . . . . . . . . . 1 . 1 . Interference 7 | . . . . . . . . . . . 1 . . 1 . . . . 2 . . 3 . . . . . . Matter Decay 3 | . . . . . . . . . . . . . . 2 . . . . . . . . . . 1 . . . Short Circuit 1 | . . . . . . . . . . . . . . . . . . . . . . . . . . . 1 . Damage (minor) 3 | . . . . . . . . . . . . . . . . . . . . . . . . . . . 3 . Siege Activations 48 | . . . . . . . . . . . . . 4 11 . . . . 15 1 3 . 2 1 9 . 2 . Total Turns 790 | . . . . . . . . . . . . . 74 246 . . . . 206 3 27 . 20 1 183 . 30 . Longest Duration 89 | . . . . . . . . . . . . . 38 89 . . . . 30 3 17 . 15 1 67 . 18 . Martial Activations . | . . . . . . . . . . . . . . . . . . . . . . . . . . . . . Shielding Activations 5 | . . . . . . . . . . . . . . . . . . . . . . . . . . . 5 . Total Turns 87 | . . . . . . . . . . . . . . . . . . . . . . . . . . . 87 . Longest Duration 30 | . . . . . . . . . . . . . . . . . . . . . . . . . . . 30 . Robots Disrupted 4 | . . . . . . . . . . . . . . . . . . . 1 . . . . . 1 . 2 . Combat Hostiles 3 | . . . . . . . . . . . . . . . . . . . . . . . . . 1 . 2 . Robots Corrupted 20 | . . . . . . . . . . . . . . . . . . . . . . . . . 4 . 16 . Combat Hostiles 19 | . . . . . . . . . . . . . . . . . . . . . . . . . 4 . 15 . Parts Fried 55 | . . . . . . . . . . 2 . . 3 . . . . . . . . . . . 20 . 30 . Impact Corruptions 2 | . . 1 . . . . . . . . . . . . . . . . . 1 . . . . . . . . Robots Melted 4 | . . . . . . . . . . . . . . 2 . . . . . . . . . . 1 . 1 . Combat Hostiles 4 | . . . . . . . . . . . . . . 2 . . . . . . . . . . 1 . 1 . Parts Melted 70 | . . . . . . 2 . 1 . . . 2 . 6 . . 2 4 4 . . . . . 9 . 40 . Heat Transferred 26782 | 74 . . . . . . . 484 . . . . 100 5153 125 525 150 1713 6206 . . . . 194 2774 . 9284 . Parts Sabotaged 8 | . . . . . . . . . . . . . 1 4 . . . . . . . . . . 3 . . . Parts Stolen . | . . . . . . . . . . . . . . . . . . . . . . . . . . . . . Parts Stripped . | . . . . . . . . . . . . . . . . . . . . . . . . . . . . . Power Chain Reactions 6 | . . . . . . . . . . . . . 3 . . . . . 1 . . . . . . . 2 . Alert | -11 -10 -9 -8 -7 -7 -7 -7 -6 -6 -6 -6 -6 -6 -5 -5 -5 -5 -4 -4 -4 -4 -4 -3 -3 -3 -3 -2 -1 ------- Run | Yrd Mat Mat Mat Fac Low Low Dat Pro Fac Ext Cet Arc Hub Fac Upp Upp War Pro Fac Upp Upp Zhi Pro Res Arm Lab Res Acc Maximum Alert Level 5 | . . 2 1 2 . . . . . 3 2 1 5 5 . . . . 5 . . . . 2 2 . 5 5 Low Security (%) 26 | 100 100 20 47 64 . . . . 100 53 . 95 7 . . . . . . . . . . . 16 . 14 . Level 1 23 | . . 46 52 12 . . . . . 14 10 4 3 . . . . . 37 . . . . 35 57 . 7 . Level 2 17 | . . 33 . 22 . . . . . 13 89 . 3 1 . . . . 12 . . . . 64 26 . 32 . Level 3 15 | . . . . . . . . . . 19 . . 62 58 . . . . 12 . . . . . . . 7 . Level 4 7 | . . . . . . . . . . . . . 5 34 . . . . 9 . . . . . . . 9 3 Level 5 8 | . . . . . . . . . . . . . 9 3 . . . . 28 . . . . . . . 24 71 High Security 1 | . . . . . . . . . . . . . 8 1 . . . . . . . . . . . . 4 24 Max Security . | . . . . . . . . . . . . . . . . . . . . . . . . . . . . . Peak Influence 2807 | 5 30 557 356 553 . . . . 183 768 532 212 2283 1937 . . . . 1841 . . . . 600 661 . 2807 2020 Initial 1684 | . . . 230 158 . . . . 37 42 400 151 . 1103 . . . . 301 . . . . 600 235 . . 1684 Average 598 | . 4 296 174 187 . . . . 98 272 457 96 1013 1080 . . . . 893 . . . . 443 352 . 1056 1769 Influence Increases 22959 | 10 35 1206 1206 820 309 155 . 309 462 1125 357 261 3313 2197 20 181 570 818 2492 115 150 10 80 847 1138 . 4167 606 Destroy 0b10 Robot/C 11540 | . 20 780 680 560 280 100 . 240 320 560 160 80 820 1360 20 140 520 640 1180 100 140 . 60 40 600 . 2080 60 Destroy 0b10 Robot/NC 1070 | 10 5 70 65 55 . 5 . 5 30 15 10 35 165 140 . . 15 10 170 5 . 10 10 25 15 . 190 10 Destroy Leader 2194 | . 10 222 204 114 10 20 . 30 82 36 . . 242 284 . 30 . 50 302 10 10 . 10 24 132 . 352 20 Allied During Kill 1784 | . . 31 . . 19 30 . 34 8 491 170 115 711 . . 11 35 73 6 . . . . . 44 . 6 . Trap Triggered on 0b10 10 | . . . 10 . . . . . . . . . . . . . . . . . . . . . . . . . Successful Hack 508 | . . 38 35 . . . . . . . . . 79 149 . . . . 71 . . . . . 28 . 108 . Select Force Hacks 60 | . . 30 30 . . . . . . . . . . . . . . . . . . . . . . . . . Disable Machine 1470 | . . 30 135 60 . . . . 15 . 15 30 675 75 . . . . 120 . . . . . 165 . 135 15 Anti-Garrison Action 450 | . . . . . . . . . . . . . 150 . . . . . . . . . . 150 . . 150 . Destroy Structure 2013 | . . 5 2 31 . . . . 7 8 2 1 381 174 . . . . 448 . . . . 8 154 . 771 21 Advance Influence 750 | . . . . . . . . . . . . . . . . . . . 150 . . . . 600 . . . . Partial Spotted 60 | . . . 15 . . . . . . . . . . . . . . . 15 . . . . . . . 15 15 Lose Combat Pursuer 1050 | . . . 30 . . . . . . 15 . . 90 15 . . . 45 30 . . . . . . . 360 465 Influence Decreases 20939 | 10 35 661 1401 659 702 273 . 249 434 497 694 640 1060 2513 1212 624 436 1012 906 1245 692 166 80 398 935 652 1360 1393 Entered New Map 7127 | . . . 315 192 190 23 . . 23 46 316 228 . 1150 718 142 302 436 91 677 133 156 . . 214 652 . 1123 Time Decay 10517 | 10 35 581 677 397 502 250 . 239 351 391 278 292 480 723 494 482 108 556 695 568 559 10 80 398 571 . 660 130 Lost Part 1090 | . . 60 50 70 10 . . 10 40 20 20 . 50 30 . . . . 100 . . . . . 100 . 390 140 Lost Ally 506 | . . 20 10 . . . . . 20 40 80 120 80 10 . . 26 20 20 . . . . . 50 . 10 . Purge Threat 1699 | . . . 349 . . . . . . . . . 450 600 . . . . . . . . . . . . 300 . Squads Dispatched 152 | . 2 6 7 9 . . . . 8 4 . . 17 17 . . . . 18 . . . . 9 9 . 42 4 Investigation 20 | . . 2 2 1 . . . . 1 1 . . 1 1 . . . . 3 . . . . 3 . . 4 1 Extermination 28 | . . . . 2 . . . . 1 . . . 3 4 . . . . 4 . . . . . 5 . 8 1 Reinforcement 52 | . 2 4 2 2 . . . . 3 2 . . 4 5 . . . . 8 . . . . 6 4 . 9 1 Assault 32 | . . . . . . . . . . 1 . . 6 7 . . . . 3 . . . . . . . 14 1 Garrison 20 | . . . 3 4 . . . . 3 . . . 3 . . . . . . . . . . . . . 7 . Intercept . | . . . . . . . . . . . . . . . . . . . . . . . . . . . . . Searches Triggered . | . . . . . . . . . . . . . . . . . . . . . . . . . . . . . Unchained Authorized 1 | . . . . . . . . . . . . . . . . . . . . . . . . . . . 1 . Data Miner Redirects 11 | . . . . . . . . . 1 2 . . . 1 . . . . 2 . . . . . . . 5 . Construction Impeded 13 | . . 1 . 1 . . . . . 2 . . 1 2 . . . . 2 . . . . 1 . . 3 . Haulers Reinforced 10 | . . . . . . . . . 1 . . . . 2 . . . . 2 . . . . 2 . . 2 1 Active Scanning Responses . | . . . . . . . . . . . . . . . . . . . . . . . . . . . . . Cargo Convoy Interrupts 1 | . . . . 1 . . . . . . . . . . . . . . . . . . . . . . . . Stealth | -11 -10 -9 -8 -7 -7 -7 -7 -6 -6 -6 -6 -6 -6 -5 -5 -5 -5 -4 -4 -4 -4 -4 -3 -3 -3 -3 -2 -1 --------- Run | Yrd Mat Mat Mat Fac Low Low Dat Pro Fac Ext Cet Arc Hub Fac Upp Upp War Pro Fac Upp Upp Zhi Pro Res Arm Lab Res Acc Distress Signals 43 | . 1 5 3 1 . . . . 1 1 2 . 5 7 . . . . 6 . . . 2 2 . . 5 2 Communications Jammed 7 | . . . . . . . . . . . . . . . . . . . . . . . . . 7 . . . Distress Signals 1 | . . . . . . . . . . . . . . . . . . . . . . . . . 1 . . . Times Spotted 904 | . 11 54 51 36 14 3 . 12 22 25 9 21 63 94 . 5 96 21 80 6 2 . 6 13 47 . 173 40 Peak Tracking Total 23 | . 4 6 7 9 7 3 . 3 5 4 5 2 16 12 . 2 19 4 7 3 2 . 2 4 7 . 20 23 Tactical Retreats 27 | . . . 2 . . . . . . 1 . . 2 1 . . . 2 2 . . . . . . . 9 8 Traps | -11 -10 -9 -8 -7 -7 -7 -7 -6 -6 -6 -6 -6 -6 -5 -5 -5 -5 -4 -4 -4 -4 -4 -3 -3 -3 -3 -2 -1 ------- Run | Yrd Mat Mat Mat Fac Low Low Dat Pro Fac Ext Cet Arc Hub Fac Upp Upp War Pro Fac Upp Upp Zhi Pro Res Arm Lab Res Acc Traps Triggered 17 | . 2 1 1 1 . . . . . 5 . . . 1 . . . . 3 . . . . . 2 . 1 . Indirectly . | . . . . . . . . . . . . . . . . . . . . . . . . . . . . . Trap Hack Attempts 15 | . . . 15 . . . . . . . . . . . . . . . . . . . . . . . . . Triggered . | . . . . . . . . . . . . . . . . . . . . . . . . . . . . . Disarmed . | . . . . . . . . . . . . . . . . . . . . . . . . . . . . . Reprogrammed 5 | . . . 5 . . . . . . . . . . . . . . . . . . . . . . . . . Reused 1 | . . . 1 . . . . . . . . . . . . . . . . . . . . . . . . . Traps Extracted . | . . . . . . . . . . . . . . . . . . . . . . . . . . . . . Installed . | . . . . . . . . . . . . . . . . . . . . . . . . . . . . . Triggered 1 | . . . 1 . . . . . . . . . . . . . . . . . . . . . . . . . Machines | -11 -10 -9 -8 -7 -7 -7 -7 -6 -6 -6 -6 -6 -6 -5 -5 -5 -5 -4 -4 -4 -4 -4 -3 -3 -3 -3 -2 -1 ---------- Run | Yrd Mat Mat Mat Fac Low Low Dat Pro Fac Ext Cet Arc Hub Fac Upp Upp War Pro Fac Upp Upp Zhi Pro Res Arm Lab Res Acc Machines Disabled 108 | . . 2 9 4 . . . . 1 1 1 2 46 5 . . 1 1 8 . . 1 . 1 11 3 10 1 Max in Single Turn 23 | . . 1 2 4 . . . . 1 1 1 1 23 3 . . 1 1 1 . . 1 . 1 1 1 1 1 Garrison Access 6 | . . . 1 . . . . . . . . . 1 . . . . . 2 . . . . 1 . . 1 . Network Hub 2 | . . . . . . . . . . . . . 2 . . . . . . . . . . . . . . . Machines Repaired . | . . . . . . . . . . . . . . . . . . . . . . . . . . . . . Machines Dismantled . | . . . . . . . . . . . . . . . . . . . . . . . . . . . . . Machines Sabotaged . | . . . . . . . . . . . . . . . . . . . . . . . . . . . . . Overloaded Fab Kills . | . . . . . . . . . . . . . . . . . . . . . . . . . . . . . Hacking | -11 -10 -9 -8 -7 -7 -7 -7 -6 -6 -6 -6 -6 -6 -5 -5 -5 -5 -4 -4 -4 -4 -4 -3 -3 -3 -3 -2 -1 --------- Run | Yrd Mat Mat Mat Fac Low Low Dat Pro Fac Ext Cet Arc Hub Fac Upp Upp War Pro Fac Upp Upp Zhi Pro Res Arm Lab Res Acc Machines Accessed 109 | . . 12 11 2 . 1 4 . 2 4 . . 9 13 1 1 1 . 15 1 1 3 . 7 6 . 12 3 Terminals 62 | . . 7 8 1 . . . . 1 4 . . 9 8 . . . . 9 . . . . 2 4 . 6 3 Fabricators 7 | . . . . . . . . . . . . . . 1 . . . . 2 . . . . 1 1 . 2 . Repair Stations 9 | . . 1 1 . . . . . 1 . . . . 2 . . . . 1 . . . . 1 1 . 1 . Recycling Units 5 | . . 2 . . . . . . . . . . . 1 . . . . 1 . . . . 1 . . . . Scanalyzers 8 | . . 2 1 . . . . . . . . . . 1 . . . . . . . . . 1 . . 3 . Garrison Access 5 | . . . 1 1 . . . . . . . . . . . . . . 2 . . . . 1 . . . . Total Hacks 406 | . . 41 30 4 . 1 28 . 4 11 . . 30 89 1 1 1 . 56 1 1 13 . 17 23 . 40 14 Successful 243 | . . 23 16 1 . 1 28 . 3 4 . . 24 56 1 1 1 . 34 1 1 13 . 3 7 . 24 1 Failed 161 | . . 18 13 3 . . . . 1 7 . . 6 33 . . . . 22 . . . . 14 16 . 15 13 Catastrophic 23 | . . . 4 2 . . . . . . . . 2 6 . . . . 1 . . . . 3 2 . 1 2 Database Lockouts 2 | . . . 1 . . . . . . . . . . . . . . . . . . . . . . . 1 . Manual 189 | . . 31 14 1 . . . . 1 11 1 . 21 25 . . 1 1 36 . . . . 9 14 . 14 9 Terminals 250 | . . 29 24 3 . . . . 1 11 . . 30 46 . . . . 45 . . . . 7 17 . 23 14 Fabricators 20 | . . . . . . . . . . . . . . 4 . . . . 3 . . . . 5 4 . 4 . Repair Stations 41 | . . 2 2 . . . . . 3 . . . . 26 . . . . 1 . . . . 1 2 . 4 . Recycling Units 9 | . . 4 . . . . . . . . . . . 1 . . . . 3 . . . . 1 . . . . Scanalyzers 31 | . . 6 3 . . . . . . . . . . 12 . . . . . . . . . 1 . . 9 . Garrison Access 8 | . . . 1 1 . . . . . . . . . . . . . . 4 . . . . 2 . . . . Terminal Hacks 108 | . . 2 9 1 . 1 28 . 1 . . . 11 13 1 1 1 . 14 1 1 13 . . 4 . 5 1 Record 12 | . . . . . . . 11 . . . . . . . . . . . . . . 1 . . . . . . Part Schematic 13 | . . . . . . . 8 . . . . . 1 . . . . . . . . 4 . . . . . . Robot Schematic 7 | . . . . . . . 6 . . . . . . . . . . . 1 . . . . . . . . . Robot Analysis 5 | . . . . . . . . . . . . . 1 . . . . . . . . 4 . . . . . . Prototype ID Bank 13 | . . 1 2 1 . . 3 . . . . . . 1 . . . . 1 . . 4 . . . . . . Open Door 7 | . . . . . . 1 . . 1 . . . . . 1 1 1 . . 1 1 . . . . . . . Branch Access Points 5 | . . 1 2 . . . . . . . . . . . . . . . 1 . . . . . . . 1 . Emergency Access Points 1 | . . . . . . . . . . . . . . . . . . . 1 . . . . . . . . . Machine Index 2 | . . . . . . . . . . . . . . 1 . . . . . . . . . . . . 1 . Terminal Index 2 | . . . . . . . . . . . . . . 1 . . . . 1 . . . . . . . . . Scanalyzer Index 2 | . . . . . . . . . . . . . 1 1 . . . . . . . . . . . . . . Alert Level 7 | . . . . . . . . . . . . . 2 1 . . . . 2 . . . . . 1 . . 1 Unreport Threat 12 | . . . 3 . . . . . . . . . 3 4 . . . . . . . . . . . . 2 . Locate Traps 6 | . . . . . . . . . . . . . . 1 . . . . 4 . . . . . 1 . . . Maintenance Status 1 | . . . . . . . . . . . . . . 1 . . . . . . . . . . . . . . Recall Extermination 2 | . . . . . . . . . . . . . . . . . . . . . . . . . 1 . 1 . Recall Assault 1 | . . . . . . . . . . . . . . 1 . . . . . . . . . . . . . . Hauler Manifests 3 | . . . 2 . . . . . . . . . . 1 . . . . . . . . . . . . . . Zone Layout 7 | . . . . . . . . . . . . . 3 . . . . . 3 . . . . . 1 . . . Fabricator Hacks 9 | . . . . . . . . . . . . . . 3 . . . . 2 . . . . 1 . . 3 . Network Status 1 | . . . . . . . . . . . . . . 1 . . . . . . . . . . . . . . Load Schematic 6 | . . . . . . . . . . . . . . 1 . . . . 2 . . . . 1 . . 2 . Build 2 | . . . . . . . . . . . . . . 1 . . . . . . . . . . . . 1 . Repair Station Hacks 31 | . . 2 2 . . . . . 2 . . . . 23 . . . . . . . . . . . . 2 . Scan Component 16 | . . 1 1 . . . . . 1 . . . . 12 . . . . . . . . . . . . 1 . Repair 15 | . . 1 1 . . . . . 1 . . . . 11 . . . . . . . . . . . . 1 . Recycling Unit Hacks 4 | . . 2 . . . . . . . . . . . 1 . . . . 1 . . . . . . . . . Retrieve Components 4 | . . 2 . . . . . . . . . . . 1 . . . . 1 . . . . . . . . . Scanalyzer 18 | . . 5 1 . . . . . . . . . . 6 . . . . . . . . . 1 . . 5 . Insert Component 4 | . . . . . . . . . . . . . . 2 . . . . . . . . . . . . 2 . Analyze 2 | . . . . . . . . . . . . . . 2 . . . . . . . . . . . . . . Retrieve Study 12 | . . 5 1 . . . . . . . . . . 2 . . . . . . . . . 1 . . 3 . Garrison Access Hacks 3 | . . . 1 . . . . . . . . . . . . . . . 2 . . . . . . . . . Seal Access 3 | . . . 1 . . . . . . . . . . . . . . . 2 . . . . . . . . . Unauthorized Hacks 70 | . . 12 3 . . . . . . 4 . . 13 10 . . . . 15 . . . . 1 3 . 9 . Terminals 62 | . . 11 2 . . . . . . 4 . . 13 9 . . . . 13 . . . . . 3 . 7 . Track 6 | . . . . . . . . . . . . . 2 . . . . . 1 . . . . . 2 . 1 . Assimilate 8 | . . 2 . . . . . . . . . . 2 1 . . . . 2 . . . . . . . 1 . Botnet 16 | . . 2 2 . . . . . . 1 . . 3 3 . . . . 2 . . . . . 1 . 2 . Operators 4 | . . 1 . . . . . . . . . . 1 1 . . . . 1 . . . . . . . . . Skim 28 | . . 6 . . . . . . . 3 . . 5 4 . . . . 7 . . . . . . . 3 . Fabricators 4 | . . . . . . . . . . . . . . 1 . . . . 1 . . . . 1 . . 1 . Prioritize 3 | . . . . . . . . . . . . . . 1 . . . . 1 . . . . . . . 1 . Recompile 1 | . . . . . . . . . . . . . . . . . . . . . . . . 1 . . . . Repair Stations 2 | . . . . . . . . . . . . . . . . . . . 1 . . . . . . . 1 . Mechanics 1 | . . . . . . . . . . . . . . . . . . . . . . . . . . . 1 . Patch 1 | . . . . . . . . . . . . . . . . . . . 1 . . . . . . . . . Recycling Units . | . . . . . . . . . . . . . . . . . . . . . . . . . . . . . Scanalyzers 2 | . . 1 1 . . . . . . . . . . . . . . . . . . . . . . . . . Extract 2 | . . 1 1 . . . . . . . . . . . . . . . . . . . . . . . . . Garrison Access . | . . . . . . . . . . . . . . . . . . . . . . . . . . . . . Data Cores Recovered 2 | . . . . . . . . . 1 . . . . . . . . . 1 . . . . . . . . . Used . | . . . . . . . . . . . . . . . . . . . . . . . . . . . . . Hacking Detections 72 | . . 11 8 2 . . . . 2 4 1 . 8 9 . . . . 5 . . . . 6 5 . 8 3 Full Trace Events 9 | . . 2 3 . . . . . 1 . . . . 1 . . . . . . . . . . . . 1 1 Feedback Events 1 | . . . 1 . . . . . . . . . . . . . . . . . . . . . . . . . Hackware Fried 1 | . . . 1 . . . . . . . . . . . . . . . . . . . . . . . . . Feedback Blocked . | . . . . . . . . . . . . . . . . . . . . . . . . . . . . . Robot Schematics Acquired 7 | . . . . . . . 6 . . . . . . . . . . . 1 . . . . . . . . . Robots Built . | . . . . . . . . . . . . . . . . . . . . . . . . . . . . . Authchips . | . . . . . . . . . . . . . . . . . . . . . . . . . . . . . Time . | . . . . . . . . . . . . . . . . . . . . . . . . . . . . . Total Robot Build Rating . | . . . . . . . . . . . . . . . . . . . . . . . . . . . . . Part Schematics Acquired 23 | . . 7 2 . . . 8 . . . . . 1 1 . . . . . . . 4 . . . . . . Parts Built 2 | . . . . . . . . . . . . . . 1 . . . . . . . . . . . . 1 . Authchips . | . . . . . . . . . . . . . . . . . . . . . . . . . . . . . Time 140 | . . . . . . . . . . . . . . 84 . . . . . . . . . . . . 56 . Total Part Build Rating 12 | . . . . . . . . . . . . . . 6 . . . . . . . . . . . . 6 . Part Studies Acquired 12 | . . 5 1 . . . . . . . . . . 2 . . . . . . . . . 1 . . 3 . Parts Repaired 14 | . . 1 1 . . . . . 1 . . . . 11 . . . . . . . . . . . . . . Time 1264 | . . 26 32 . . . . . 38 . . . . 1079 . . . . . . . . . . . . 89 . Parts Recycled . | . . . . . . . . . . . . . . . . . . . . . . . . . . . . . Recycled Matter . | . . . . . . . . . . . . . . . . . . . . . . . . . . . . . Retrieved Matter . | . . . . . . . . . . . . . . . . . . . . . . . . . . . . . Retrieved Components 36 | . . 16 . . . . . . . . . . . 10 . . . . 10 . . . . . . . . . Parts Scanalyzed 1 | . . . . . . . . . . . . . . 1 . . . . . . . . . . . . . . Part Schematics Acquired 1 | . . . . . . . . . . . . . . 1 . . . . . . . . . . . . . . Parts Damaged 1 | . . . . . . . . . . . . . . 1 . . . . . . . . . . . . . . Bothacking | -11 -10 -9 -8 -7 -7 -7 -7 -6 -6 -6 -6 -6 -6 -5 -5 -5 -5 -4 -4 -4 -4 -4 -3 -3 -3 -3 -2 -1 ------------ Run | Yrd Mat Mat Mat Fac Low Low Dat Pro Fac Ext Cet Arc Hub Fac Upp Upp War Pro Fac Upp Upp Zhi Pro Res Arm Lab Res Acc Used RIF Installer . | . . . . . . . . . . . . . . . . . . . . . . . . . . . . . Robots Hacked 1 | . . . . . . . . . . . . 1 . . . . . . . . . . . . . . . . Non-combat 1 | . . . . . . . . . . . . 1 . . . . . . . . . . . . . . . . Combat . | . . . . . . . . . . . . . . . . . . . . . . . . . . . . . Robot Hacks Applied 1 | . . . . . . . . . . . . 1 . . . . . . . . . . . . . . . . check_alert 1 | . . . . . . . . . . . . 1 . . . . . . . . . . . . . . . . Relay Couplers Released 10 | . . . . . . . . . . . . . 6 . . . . . . . . . . 2 . . 2 . Machine Destruction 7 | . . . . . . . . . . . . . 3 . . . . . . . . . . 2 . . 2 . Programmers 3 | . . . . . . . . . . . . . 3 . . . . . . . . . . . . . . . Fabnet Peak Effective % . | . . . . . . . . . . . . . . . . . . . . . . . . . . . . . Robots Rewired 28 | . . . . . 2 . . . . 16 . . . . . . 5 2 . . . . . . 3 . . . Allies Hacked 3 | . . . . . . . . . . . . . . 1 . . 1 . . . . . . . 1 . . . Hacks Repelled 1 | . . . . . . . . . . . . . . . . . 1 . . . . . . . . . . . Allies | -11 -10 -9 -8 -7 -7 -7 -7 -6 -6 -6 -6 -6 -6 -5 -5 -5 -5 -4 -4 -4 -4 -4 -3 -3 -3 -3 -2 -1 -------- Run | Yrd Mat Mat Mat Fac Low Low Dat Pro Fac Ext Cet Arc Hub Fac Upp Upp War Pro Fac Upp Upp Zhi Pro Res Arm Lab Res Acc Total Allies 53 | . . 2 . 1 2 . . . . 30 5 . . 1 . . 5 2 1 . . . . . 3 . 1 . Largest Group 29 | . . 1 1 1 3 3 3 3 1 28 29 22 8 1 . . 5 5 4 1 1 1 1 1 3 . 1 . Highest-Rated Group 1202 | . . 34 9 40 72 72 69 69 40 912 1202 872 475 26 . . 297 251 188 26 26 26 26 26 168 . 45 . Highest-Rated Ally 159 | . . 34 9 40 40 40 40 40 40 159 150 96 96 26 . . 64 64 64 26 26 26 26 26 64 . 45 . Total Orders 97 | . . . . . . . . . . . 4 16 13 2 1 13 9 25 . . . . . . . . 14 . STAY 27 | . . . . . . . . . . . 2 12 5 . . . 5 3 . . . . . . . . . . ROAM 3 | . . . . . . . . . . . . 3 . . . . . . . . . . . . . . . . FOLLOW 6 | . . . . . . . . . . . 2 1 1 . . 1 1 . . . . . . . . . . . EXPLORE 19 | . . . . . . . . . . . . . 3 1 . 2 1 7 . . . . . . . . 5 . RETURN 42 | . . . . . . . . . . . . . 4 1 1 10 2 15 . . . . . . . . 9 . Ally Attacks 467 | . . 6 . . . 5 . 8 . 98 37 34 87 . . 33 21 92 2 . . . . . 12 . 32 . Total Damage 10411 | . . 65 . . . 84 . 106 . 2139 821 729 2791 . . 548 512 1737 34 . . . . . 193 . 652 . Kills 78 | . . 4 . . . . . 1 . 17 6 3 23 . . 4 1 17 . . . . . . 1 . 1 . Allies Corrupted 4 | . . . . . . . . . . . . . 2 . . . . . . . . . . . 2 . . . Allies Melted . | . . . . . . . . . . . . . . . . . . . . . . . . . . . . . Intel | -11 -10 -9 -8 -7 -7 -7 -7 -6 -6 -6 -6 -6 -6 -5 -5 -5 -5 -4 -4 -4 -4 -4 -3 -3 -3 -3 -2 -1 ------- Run | Yrd Mat Mat Mat Fac Low Low Dat Pro Fac Ext Cet Arc Hub Fac Upp Upp War Pro Fac Upp Upp Zhi Pro Res Arm Lab Res Acc Active Infowar (turns) 28190 | . . . 39 1027 1359 1365 178 1333 879 507 . . 310 2628 1301 976 287 1648 2886 1710 1648 408 780 959 1722 814 3064 362 Optics 21798 | . . . . 176 1359 1365 178 1333 879 507 . . . . . . . 1648 2886 1710 1648 408 780 959 1722 814 3064 362 Sensors 39 | . . . 39 . . . . . . . . . . . . . . . . . . . . . . . . . A.S.S. 4596 | . . . . . . . . . . . . . . . . . . . . 1045 1648 149 780 959 15 . . . IFF 5502 | . . . . . . . . . . . . . 310 2628 1301 976 287 . . . . . . . . . . . Terrain 3202 | . . . . . . . . . . . . . . 121 732 . . . . . . . . 379 864 . 1106 . Structural 263 | . . . . . . . . . . . . . . . . . . . . . . . . . . . 208 55 Seismic 1895 | . . . . . . . . . . . . . . . . . . . . . . . . . 734 . 1161 . T.N.C. 851 | . . . . 851 . . . . . . . . . . . . . . . . . . . . . . . . Machine Analysis 38 | . . . . . . . . . . . . . . . . . . . 37 . . . . . . . 1 . Triangulation 443 | . . . . . . . . . . . . . . . . . . . 436 . . . . . 7 . . . Cloaking 2 | . . . . . . . . . . . . . . . . . . . 2 . . . . . . . . . Jamming 77 | . . . . . . . . . . . . . . . . . . . . . . . . . 33 . 44 . Robot Analysis Total 5 | . . . . . . . . . . . . . 1 . . . . . . . . 4 . . . . . . Derelict Logs Recovered 13 | . . . . . 1 2 . 2 . . . . . . 2 1 . 1 . 2 2 . . . . . . . Drone Launches 72 | . . . . . . . . . . . . . 6 2 3 23 5 20 2 . . . . . . . 11 . Drone Recoveries 66 | . . . . . . . . . . . . . 6 2 3 23 5 17 . . . . . . . . 10 . Exploration | -11 -10 -9 -8 -7 -7 -7 -7 -6 -6 -6 -6 -6 -6 -5 -5 -5 -5 -4 -4 -4 -4 -4 -3 -3 -3 -3 -2 -1 ------------- Run | Yrd Mat Mat Mat Fac Low Low Dat Pro Fac Ext Cet Arc Hub Fac Upp Upp War Pro Fac Upp Upp Zhi Pro Res Arm Lab Res Acc Turns Passed 40576 | 113 302 2755 3011 1108 1359 1365 178 1333 879 1996 606 790 1407 3512 1303 1252 1072 1862 2886 1710 1648 428 780 959 1722 814 3064 362 Spaces Moved 17896 | 55 152 1149 1273 413 610 591 82 519 326 757 250 364 704 1284 798 691 472 818 1126 676 635 224 281 487 696 343 1581 539 Core 450 | 1 1 . . . . . . . . . . . . . . . . . . . . . . . . . 146 302 Treads 15914 | 54 151 1149 1273 413 610 591 82 519 248 757 250 364 704 1284 798 691 472 818 1122 676 635 224 281 300 696 343 409 . Legs 1026 | . . . . . . . . . . . . . . . . . . . . . . . . . . . 1026 . Wheels 269 | . . . . . . . . . 78 . . . . . . . . . 4 . . . . 187 . . . . Hover 1 | . . . . . . . . . . . . . . . . . . . . . . . . . . . . 1 Flight 236 | . . . . . . . . . . . . . . . . . . . . . . . . . . . . 236 Fastest Speed 40 | 50 150 160 200 200 210 219 219 219 145 210 160 160 160 160 160 160 160 160 160 243 163 163 243 128 158 163 50 40 Average Speed 178 | 158 159 201 200 203 212 219 219 225 206 210 168 161 160 160 160 160 161 160 186 243 242 171 243 172 162 164 121 46 Slowest Speed 255 | 160 160 240 240 210 250 219 219 250 250 210 240 240 160 160 160 160 240 160 255 243 243 245 243 250 243 165 243 100 Overloaded Moves . | . . . . . . . . . . . . . . . . . . . . . . . . . . . . . Propulsion Burnouts . | . . . . . . . . . . . . . . . . . . . . . . . . . . . . . Robots Hopped 2 | . . . . . . . . . . . . . . . . . . . . . . . . . . . . 2 Potential Cave-ins . | . . . . . . . . . . . . . . . . . . . . . . . . . . . . . Cave-ins Triggered . | . . . . . . . . . . . . . . . . . . . . . . . . . . . . . Teleports 2 | . . . . . . . . . . . . . . . . . . . . . . . . . 1 . 1 . Exploration Rate (%) 62 | 4 42 86 97 8 78 66 74 74 14 87 68 83 72 33 96 89 95 98 35 83 86 61 60 23 50 92 47 23 Regions Visited 28 Branch Regions 18 Pre-discovered Areas 6 | . . . . . 1 . 1 . . . . . 1 . 1 . . . 1 . 1 . . . . . . . Known Exits Taken 14 | . . 1 1 1 . . . . 1 . . . . 1 . 1 . 1 1 1 1 1 1 1 . 1 . . Unknown Exits Taken 14 | 1 1 . . . 1 1 1 1 . 1 1 1 1 . 1 . 1 . . . . . . . 1 . 1 . Scrap Searched 26 | . . . . . 6 3 . 4 . . . . . . 2 1 . 3 . 4 2 . 1 . . . . . Spaces Dug 246 | . . . . 1 . 9 . 6 2 2 . . 7 13 . 1 19 3 75 4 3 . . . 37 . 58 6 Terrain Destroyed 1474 | . . . . 35 . 9 . 6 2 4 . 1 451 107 1 6 128 11 256 16 13 . 14 4 91 1 311 7 Melee 48 | . . . . 1 . 9 . 6 2 2 . . 1 10 . 1 3 1 2 . . . . . . . 4 6 Projectile 379 | . . . . . . . . . . 2 . 1 43 67 1 5 26 10 115 16 13 . 14 3 14 1 47 1 AOE 1046 | . . . . 34 . . . . . . . . 407 30 . . 99 . 139 . . . . . 77 . 260 . Terrain Rammed . | . . . . . . . . . . . . . . . . . . . . . . . . . . . . . Walls Destroyed . | . . . . . . . . . . . . . . . . . . . . . . . . . . . . . Machines Disabled . | . . . . . . . . . . . . . . . . . . . . . . . . . . . . . Actions | -11 -10 -9 -8 -7 -7 -7 -7 -6 -6 -6 -6 -6 -6 -5 -5 -5 -5 -4 -4 -4 -4 -4 -3 -3 -3 -3 -2 -1 --------- Run | Yrd Mat Mat Mat Fac Low Low Dat Pro Fac Ext Cet Arc Hub Fac Upp Upp War Pro Fac Upp Upp Zhi Pro Res Arm Lab Res Acc Total 24071 | 68 183 1393 1582 598 648 631 81 619 466 1091 396 506 869 2433 820 798 690 1305 1603 713 719 265 352 570 1109 574 2379 610 Wait 2790 | 1 8 53 52 54 7 4 . 50 60 39 51 71 70 853 9 65 54 417 192 13 55 3 58 21 117 157 236 20 Move 17865 | 54 151 1148 1272 412 609 590 81 518 325 756 249 363 703 1283 797 690 472 817 1125 675 634 223 280 486 695 342 1580 535 Hop 2 | . . . . . . . . . . . . . . . . . . . . . . . . . . . . 2 Pick Up 347 | 2 2 34 40 18 4 4 . 1 11 9 14 6 6 38 1 3 13 5 18 2 8 5 . 12 24 10 57 . Fast Attach 225 | 6 6 9 13 6 . . . . 7 1 9 8 3 9 2 1 12 2 22 1 2 11 2 6 28 11 36 12 Attach 194 | . 1 6 9 12 2 . . . 3 4 6 2 3 22 . 2 6 3 21 . . 3 . 7 22 4 52 4 Detach 113 | . 2 2 4 7 . . . . . 3 5 5 1 5 . 2 5 3 18 3 . 1 . 1 19 5 18 4 Swap 442 | . . 19 26 17 1 8 . 16 6 4 10 11 24 58 6 18 28 9 39 2 . . 1 7 49 1 82 . Drop 403 | . . 25 53 15 3 5 . 2 10 6 25 11 6 25 4 3 24 5 25 2 10 14 2 12 33 20 60 3 Fire 1238 | 5 13 89 85 56 16 11 . 25 42 44 27 28 47 126 1 13 46 25 131 13 10 . 9 16 104 24 231 1 Melee 104 | . . 1 1 1 . 9 . 7 2 5 . 1 2 11 . 1 3 1 3 . . 5 . 2 1 . 24 24 Ram 5 | . . . . . . . . . . . . . . . . . . . . . . . . . . . . 5 Kick 3 | . . . . . . . . . . . . . . . . . . . . . . . . . . . 3 . Crush 41 | . . 7 12 . . . . . . 5 . . 4 3 . . . . 8 2 . . . . . . . . Escape Stasis 9 | . . . . . . . . . . 8 . . . . . . . . 1 . . . . . . . . . Rewire 275 | . . . . . 6 . . . . 207 . . . . . . 27 18 . . . . . . 17 . . . Trap 15 | . . . 15 . . . . . . . . . . . . . . . . . . . . . . . . . Miscellaneous . | . . . . . . . . . . . . . . . . . . . . . . . . . . . . . Route ------- -11/Scrapyard -10/Materials (discovered 3 exits: *Mat / [*Min x2]) -9/Materials (discovered 4 exits: *Mat x3 / *Min) -8/Materials (discovered 3 exits: *Fac x3) -7/Factory (discovered 2 exits: Sto / *Low) -7/Lower Caves -7/Lower Caves -7/Data Miner -6/Proximity Caves -6/Factory -6/Extension (discovered 2 exits: *Fac / *Cet) -6/Cetus (discovered 2 exits: *Fac / [*Arc]) -6/Archives (discovered 3 exits: *Fac / *Hub x2) -6/Hub_04(d) (discovered 3 exits: *Fac x3) -5/Factory (discovered 5 exits: *Fac x3 / *Upp x2) -5/Upper Caves -5/Upper Caves (discovered 2 exits: *Fac / *War) -5/Warlord -4/Proximity Caves -4/Factory (discovered 5 exits: Res x3 / *Upp x2) -4/Upper Caves -4/Upper Caves (discovered 2 exits: *Res / *Zhi) -4/Zhirov -3/Proximity Caves -3/Research (discovered 3 exits: *Res / *Arm / Tes) -3/Armory (discovered 2 exits: *Res / [*Lab]) -3/Lab -2/Research -1/Access History --------- Turn | Location | Event 10 | -11/Scrapyard | Discovered new exit (range 15) 114 | -11/Scrapyard | Entered Materials 228 | -10/Materials | Met 8R-AWN 237 | -10/Materials | Discovered new exit (range 7) 310 | -10/Materials | Build established: Mutant 311 | -10/Materials | Discovered new exit (range 10) 371 | -10/Materials | Discovered new exit (range 16) 416 | -10/Materials | Entered another Materials area 416 | -9/Materials | Evolved 2 slots: Weapon x2 711 | -9/Materials | Botcube activated 725 | -9/Materials | Botcube completed mutation into treaded form, armed with 2 guns. 915 | -9/Materials | Build established: Tank 1005 | -9/Materials | Discovered new exit (range 8) 1249 | -9/Materials | Found Botcube 1433 | -9/Materials | Build established: Scavenger-Gunner 1633 | -9/Materials | Discovered new exit (range 13) 1837 | -9/Materials | Lost 3 parts (1p2w) 2275 | -9/Materials | Discovered new exit (range 5) 2550 | -9/Materials | Learned Storage security intel 2588 | -9/Materials | Learned 4 Recycling zone layouts 2591 | -9/Materials | Identified exit to Materials 2591 | -9/Materials | Learned location of 1 exit from Materials 2606 | -9/Materials | Learned Storage terminal intel 2647 | -9/Materials | Repaired Lgt. Treads+ 2738 | -9/Materials | Identified exit to Mines 3171 | -9/Materials | Entered another Materials area 3171 | -8/Materials | Accompanied by 1 ally 3171 | -8/Materials | Evolved 2 slots: Propulsion x1, Utility x1 3172 | -8/Materials | Identified exit to Factory 3414 | -8/Materials | Repaired Hvy. Assault Rifle+ 3547 | -8/Materials | Garrison activated, responded to threat 3629 | -8/Materials | Destroyed 11 combat bots 3791 | -8/Materials | Hacking Suite fried by hacking feedback 3947 | -8/Materials | Build established: Scavenger-Tank 4345 | -8/Materials | Discovered exit to Factory (range 5) 5427 | -8/Materials | Build established: Gunner 5784 | -8/Materials | Central database locked down 6055 | -8/Materials | Discovered exit to Factory (range 3) 6182 | -8/Materials | Entered Factory 6182 | -7/Factory | Evolved 2 slots: Utility x2 6183 | -7/Factory | Identified exit to Storage 6477 | -7/Factory | Build established: Scavenger-Gunner 6597 | -7/Factory | Discovered new exit (range 7) 6639 | -7/Factory | Identified exit to Lower Caves 6784 | -7/Factory | Garrison activated, responded to threat 6894 | -7/Factory | Garrison activated, responded to threat 7043 | -7/Factory | Cargo convoy interrupted 7066 | -7/Factory | Destroyed 8 combat bots 7106 | -7/Factory | Lost 7 parts (1p2n1u3w) 7170 | -7/Factory | Botcube activated 7290 | -7/Factory | Entered Lower Caves 7290 | -7/Lower Caves | Accompanied by 1 ally 7291 | -7/Lower Caves | Encountered a Warlord checkpoint 7311 | -7/Lower Caves | Build established: Gunner 8252 | -7/Lower Caves | Discovered new exit (range 8) 8260 | -7/Lower Caves | Attracted the attention of an 0b10 checkpoint 8288 | -7/Lower Caves | Learned location of Zion (-6) 8414 | -7/Lower Caves | Attracted the attention of an 0b10 outpost 8461 | -7/Lower Caves | Destroyed 7 combat bots 8649 | -7/Lower Caves | Entered another Lower Caves area 8649 | -7/Lower Caves | Accompanied by 3 allies 8961 | -7/Lower Caves | Learned Factory emergency access door positions 9215 | -7/Lower Caves | Learned Factory trap positions 9723 | -7/Lower Caves | Discovered new exit (range 11) 10014 | -7/Lower Caves | Entered Data Miner 10014 | -7/Data Miner | Accompanied by 3 allies 10014 | -7/Data Miner | Discovered new exit (range 6) 10041 | -7/Data Miner | Met Data Miner 10111 | -7/Data Miner | Learned location of Section 7 (-2) 10111 | -7/Data Miner | Acquired the access code to Warlord's prototype stash 10135 | -7/Data Miner | Received God Mode back door access code from Data Miner 10192 | -7/Data Miner | Entered Proximity Caves 10192 | -6/Proximity Caves | Accompanied by 3 allies 10247 | -6/Proximity Caves | Learned 8 Factory zone layouts 10778 | -6/Proximity Caves | Received a Behemoth hack from an annoying Tinkerer 11119 | -6/Proximity Caves | Attracted the attention of an 0b10 checkpoint 11214 | -6/Proximity Caves | Spotted B-75 Beast 11240 | -6/Proximity Caves | Destroyed B-75 Beast 11487 | -6/Proximity Caves | Discovered new exit (range 8) 11525 | -6/Proximity Caves | Entered Factory 11525 | -6/Factory | Accompanied by 1 ally 11525 | -6/Factory | Evolved 2 slots: Propulsion x1, Utility x1 11526 | -6/Factory | Identified exit to Extension 11528 | -6/Factory | Loaded intel: 86 trap records 11852 | -6/Factory | Spotted B-75 Beast 11933 | -6/Factory | Garrison activated, responded to threat 12231 | -6/Factory | Build established: Scavenger-Gunner 12315 | -6/Factory | Repaired Minigun 12366 | -6/Factory | Incoming investigation squad redirected 12404 | -6/Factory | Entered Extension 12595 | -6/Extension | Rescued A7 12920 | -6/Extension | Rescued a captive Derelict 12920 | -6/Extension | Rescued a captive Derelict 12957 | -6/Extension | Rescued a captive Derelict 12958 | -6/Extension | Rescued a captive Derelict 13375 | -6/Extension | Incoming investigation squad redirected 13411 | -6/Extension | Spotted B-75 Beast 13411 | -6/Extension | Destroyed B-75 Beast 13430 | -6/Extension | Spotted B-75 Beast 13445 | -6/Extension | Allies destroyed B-75 Beast 13515 | -6/Extension | Rescued a captive Derelict 13516 | -6/Extension | Rescued a captive Derelict 13630 | -6/Extension | Rescued a captive Derelict 13632 | -6/Extension | Rescued a captive Derelict 13760 | -6/Extension | Rescued a captive Derelict 13760 | -6/Extension | Rescued a captive Derelict 13856 | -6/Extension | Rescued a captive Derelict 13861 | -6/Extension | Rescued a captive Derelict 13896 | -6/Extension | Build established: Commander-Gunner 14154 | -6/Extension | First assault squad dispatched 14179 | -6/Extension | Incoming assault squad redirected 14215 | -6/Extension | Rescued a captive Derelict 14258 | -6/Extension | Discovered new exit (range 10) 14260 | -6/Extension | Discovered new exit (range 6) 14400 | -6/Extension | Entered Cetus 14400 | -6/Cetus | Accompanied by 27 allies (A7) 14405 | -6/Cetus | Acquired a Cetus Manufacturing Module code from A7 14428 | -6/Cetus | Spotted Cetus Guard 14429 | -6/Cetus | Spotted Cetus Guard 14432 | -6/Cetus | Spotted Cetus Guard 14433 | -6/Cetus | Spotted Cetus Guard 14435 | -6/Cetus | Allies destroyed Cetus Guard 14439 | -6/Cetus | Allies destroyed Cetus Guard 14442 | -6/Cetus | Allies destroyed Cetus Guard 14447 | -6/Cetus | Allies destroyed Cetus Guard 14573 | -6/Cetus | Started Cetus Manufacturing Module 14592 | -6/Cetus | Escorted A7 to Cetus Mainframe 14598 | -6/Cetus | Manufactured an Enhanced Grunt 14623 | -6/Cetus | Manufactured an Enhanced Grunt 14626 | -6/Cetus | Discovered new exit (range 15) 14648 | -6/Cetus | Manufactured an Enhanced Grunt 14654 | -6/Cetus | Spotted Cetus Guard 14655 | -6/Cetus | Spotted Cetus Guard 14660 | -6/Cetus | Spotted Cetus Guard 14665 | -6/Cetus | Spotted Cetus Guard 14669 | -6/Cetus | Destroyed Cetus Guard 14672 | -6/Cetus | Destroyed Cetus Guard 14673 | -6/Cetus | Manufactured an Enhanced Grunt 14674 | -6/Cetus | Destroyed Cetus Guard 14681 | -6/Cetus | Destroyed Cetus Guard 14691 | -6/Cetus | Discovered new exit (range 15) 14698 | -6/Cetus | Manufactured an Enhanced Grunt 14701 | -6/Cetus | Met Revision 17 14710 | -6/Cetus | Lost 3 allies 14834 | -6/Cetus | Murdered A7 14840 | -6/Cetus | Found Prototype Protection 14840 | -6/Cetus | Identified Med. Regenerative Plating 14844 | -6/Cetus | Extracted ID and sensor layout for unrecognized location from A7's data core 15006 | -6/Cetus | Entered Archives 15006 | -6/Archives | Accompanied by 23 allies 15093 | -6/Archives | Lost 7 allies 15222 | -6/Archives | Discovered new exit (range 16) 15354 | -6/Archives | Discovered new exit (range 16) 15369 | -6/Archives | Discovered new exit (range 16) 15796 | -6/Archives | Entered Hub_04(d) 15796 | -6/Hub_04(d) | Accompanied by 8 allies 16014 | -6/Hub_04(d) | Discovered new exit (range 9) 16118 | -6/Hub_04(d) | Build established: Scavenger-Gunner 16345 | -6/Hub_04(d) | Learned 4 Extension zone layouts 16379 | -6/Hub_04(d) | Loaded intel: 4 trap records 16422 | -6/Hub_04(d) | Learned Extension trap positions 16425 | -6/Hub_04(d) | Discovered new exit (range 5) 16461 | -6/Hub_04(d) | Learned location of 2 exits from Factory 16498 | -6/Hub_04(d) | Learned location of 2 exits from Factory 16506 | -6/Hub_04(d) | Spotted B-75 Beast 16521 | -6/Hub_04(d) | Destroyed B-75 Beast 16701 | -6/Hub_04(d) | Found Prototype Device 16701 | -6/Hub_04(d) | Identified Exp. Thermal Shield 16935 | -6/Hub_04(d) | Network Hub disabled 16942 | -6/Hub_04(d) | Spotted Lightning 16946 | -6/Hub_04(d) | Spotted Lightning 16954 | -6/Hub_04(d) | Destroyed Lightning 16960 | -6/Hub_04(d) | Spotted Lightning 16966 | -6/Hub_04(d) | Destroyed Lightning 16985 | -6/Hub_04(d) | Destroyed Lightning 17005 | -6/Hub_04(d) | Found Prototype Energy Cannon 17006 | -6/Hub_04(d) | Destroyed 9 combat bots 17022 | -6/Hub_04(d) | Found Prototype Device 17022 | -6/Hub_04(d) | Identified Exp. EM Shield 17033 | -6/Hub_04(d) | Found Exp. Targeting Computer 17090 | -6/Hub_04(d) | Garrison activated, responded to threat 17090 | -6/Hub_04(d) | High security lockdown imminent 17105 | -6/Hub_04(d) | Discovered new exit (range 14) 17152 | -6/Hub_04(d) | Network Hub disabled 17152 | -6/Hub_04(d) | Spotted Lightning 17152 | -6/Hub_04(d) | Spotted Lightning 17152 | -6/Hub_04(d) | Spotted Lightning 17170 | -6/Hub_04(d) | High security lockdown engaged 17177 | -6/Hub_04(d) | System corruption reached 10% 17203 | -6/Hub_04(d) | Entered Factory 17203 | -5/Factory | Evolved 2 slots: Utility x2 17204 | -5/Factory | Identified exit to Factory 17204 | -5/Factory | Identified exit to Upper Caves 17232 | -5/Factory | Lost 3 parts (1u2w) 17307 | -5/Factory | Build established: Scavenger-Tank 17617 | -5/Factory | Build established: Scavenger-Gunner 17726 | -5/Factory | Fabricated Combat Drone Bay (x1) 17808 | -5/Factory | Identified EMDS 18030 | -5/Factory | Repaired Centrium Heavy Treads 18149 | -5/Factory | Repaired Centrium Heavy Treads 18249 | -5/Factory | Repaired Adv. KE Penetrator 18354 | -5/Factory | Repaired Adv. KE Penetrator 18403 | -5/Factory | First assault squad dispatched 19525 | -5/Factory | Discovered exit to Upper Caves (range 13) 19610 | -5/Factory | Repaired Broken Centrium Heavy Treads 19710 | -5/Factory | Repaired Exp. Cooling System? 19794 | -5/Factory | Repaired Quantum Reactor? 19928 | -5/Factory | Repaired Adv. KE Penetrator? 20044 | -5/Factory | Repaired Adv. KE Penetrator 20159 | -5/Factory | Repaired Centrium Heavy Treads 20226 | -5/Factory | Repaired Lrn. Missile Launcher+ 20328 | -5/Factory | Incoming assault squad redirected 20382 | -5/Factory | Lost 3 parts (1p2w) 20396 | -5/Factory | Destroyed 17 combat bots 20650 | -5/Factory | High security lockdown imminent 20715 | -5/Factory | Entered Upper Caves 20840 | -5/Upper Caves | Learned Factory stockpile data 21497 | -5/Upper Caves | Learned location of Warlord (-5) 21630 | -5/Upper Caves | Found DCF Scrap (14 items) 21820 | -5/Upper Caves | Discovered new exit (range 13) 22018 | -5/Upper Caves | Entered another Upper Caves area 22152 | -5/Upper Caves | Discovered exit to Factory (range 15) 22171 | -5/Upper Caves | Identified exit to Warlord 22305 | -5/Upper Caves | Entered a destroyed Warlord outpost 22997 | -5/Upper Caves | Attracted the attention of an 0b10 checkpoint 23270 | -5/Upper Caves | Entered Warlord 23325 | -5/Warlord | System corruption cleaned by Quarantine Array 23347 | -5/Warlord | Discovered new exit (range 37) 23554 | -5/Warlord | Opened Warlord's prototype stash 23568 | -5/Warlord | Found Prototype Device 23568 | -5/Warlord | Identified Exp. Focal Shield 23581 | -5/Warlord | Found Prototype Reactor 23589 | -5/Warlord | Found Prototype Processor 23589 | -5/Warlord | Identified Exp. Core Analyzer 23728 | -5/Warlord | Visited the Vortex Lab 23741 | -5/Warlord | Warlord's base attacked by MAIN.C 23741 | -5/Warlord | Found Prototype Energy Gun 23741 | -5/Warlord | Identified Vortex Shotgun 23754 | -5/Warlord | Found Vortex Shotgun 24091 | -5/Warlord | Warlord forces counterattacked 24113 | -5/Warlord | Spotted Striker 24168 | -5/Warlord | Lost 4 allies 24175 | -5/Warlord | Spotted Striker 24189 | -5/Warlord | Spotted Striker 24194 | -5/Warlord | Destroyed Striker 24204 | -5/Warlord | Destroyed Striker 24208 | -5/Warlord | Spotted Striker 24209 | -5/Warlord | Destroyed Executioner 24236 | -5/Warlord | Destroyed 13 combat bots 24245 | -5/Warlord | Found Prototype Device 24248 | -5/Warlord | Found Exp. Core Analyzer 24252 | -5/Warlord | Spotted Executioner 24252 | -5/Warlord | Spotted Striker 24262 | -5/Warlord | Destroyed Striker 24284 | -5/Warlord | Lost 13 allies 24289 | -5/Warlord | Destroyed 10 combat bots 24299 | -5/Warlord | Identified Adv. Kinecellerator 24306 | -5/Warlord | Found Adv. Kinecellerator 24328 | -5/Warlord | Found Exp. Targeting Computer 24342 | -5/Warlord | Spotted Striker 24342 | -5/Warlord | Entered Proximity Caves 24342 | -4/Proximity Caves | Accompanied by 3 allies 24345 | -4/Proximity Caves | Spotter reported a threat 24530 | -4/Proximity Caves | Acquired the password to a Derelict Tinkerer's latest research 24549 | -4/Proximity Caves | Found Prototype Special Weapon 25710 | -4/Proximity Caves | Discovered exit to Factory (range 11) 26021 | -4/Proximity Caves | Encountered a Derelict sapper outpost 26204 | -4/Proximity Caves | Entered Factory 26204 | -4/Factory | Accompanied by 4 allies 26204 | -4/Factory | Evolved 2 slots: Power x1, Utility x1 26360 | -4/Factory | Lost 5 allies 26587 | -4/Factory | Spotted B-86 Titan 26607 | -4/Factory | Destroyed B-86 Titan 26645 | -4/Factory | Identified exit to Upper Caves 26967 | -4/Factory | Identified Vortex Chain Reactor 27954 | -4/Factory | First assault squad dispatched 28116 | -4/Factory | Identified exit to Research 28160 | -4/Factory | Learned 8 Research zone layouts 28161 | -4/Factory | Learned 2 Proximity Caves zone layouts 28163 | -4/Factory | Found Prototype Device 28200 | -4/Factory | Learned Research fabricator intel 28294 | -4/Factory | Destroyed 8 combat bots 28481 | -4/Factory | Incoming assault squad redirected 28613 | -4/Factory | Incoming investigation squad redirected 28697 | -4/Factory | Build established: Scavenger-Tank 29090 | -4/Factory | Entered Upper Caves 29090 | -4/Upper Caves | Accompanied by 1 ally 29349 | -4/Upper Caves | Encountered a Warlord checkpoint 29517 | -4/Upper Caves | Attracted the attention of an 0b10 checkpoint 29542 | -4/Upper Caves | Learned 4 Research zone layouts 29755 | -4/Upper Caves | Identified Active Sensor Suite 29832 | -4/Upper Caves | Learned Research garrison access intel 30042 | -4/Upper Caves | Build established: Scavenger-Skirmisher 30427 | -4/Upper Caves | Attacked by a delusional Derelict stockpiling parts 30754 | -4/Upper Caves | Discovered new exit (range 6) 30778 | -4/Upper Caves | Spotted B-86 Titan 30798 | -4/Upper Caves | Identified exit to Upper Caves 30800 | -4/Upper Caves | Entered another Upper Caves area 30800 | -4/Upper Caves | Accompanied by 1 ally 31079 | -4/Upper Caves | Discovered exit to Research (range 15) 31222 | -4/Upper Caves | Learned location of Armory (-3) 31448 | -4/Upper Caves | Learned Research non-interactive machine intel 31564 | -4/Upper Caves | Found DCF Scrap (11 items) 31708 | -4/Upper Caves | Entered a destroyed Warlord outpost 32308 | -4/Upper Caves | Discovered new exit (range 6) 32318 | -4/Upper Caves | Identified exit to Zhirov 32448 | -4/Upper Caves | Entered Zhirov 32448 | -4/Zhirov | Accompanied by 1 ally 32450 | -4/Zhirov | Discovered new exit (range 4) 32479 | -4/Zhirov | Met Zhirov 32523 | -4/Zhirov | Zhirov requested help retrieving the SGEMP Prototype 32602 | -4/Zhirov | Found Alien Artifact 32602 | -4/Zhirov | Identified Integrated Reactor 32602 | -4/Zhirov | Installed Integrated Reactor, increased core energy generation (+10) 32745 | -4/Zhirov | Found Alien Artifact 32871 | -4/Zhirov | Identified exit to Proximity Caves 32876 | -4/Zhirov | Entered Proximity Caves 32876 | -3/Proximity Caves | Accompanied by 1 ally 32985 | -3/Proximity Caves | Spotter reported a threat 33126 | -3/Proximity Caves | Spotter reported a threat 33179 | -3/Proximity Caves | Spotter reported a threat 33308 | -3/Proximity Caves | Spotter reported a threat 33546 | -3/Proximity Caves | Discovered exit to Research (range 10) 33656 | -3/Proximity Caves | Entered Research 33656 | -3/Research | Accompanied by 1 ally 33656 | -3/Research | Evolved 2 slots: Propulsion x2 33657 | -3/Research | Identified exit to Armory 33657 | -3/Research | Identified exit to Testing 33659 | -3/Research | Loaded intel: 56 non-interactive machine locations 33660 | -3/Research | Loaded intel: 4 fabricator locations 33661 | -3/Research | Loaded intel: 4 garrison access locations 33856 | -3/Research | Revision forces began assault on 0b10 33875 | -3/Research | Met up with Revision 17++ 34198 | -3/Research | Found Prototype Device 34198 | -3/Research | Identified Exp. Terrain Scanner 34205 | -3/Research | Found Exp. Terrain Scanner 34284 | -3/Research | Discovered new exit (range 6) 34298 | -3/Research | Identified exit to Research 34340 | -3/Research | Spotted B-86 Titan 34356 | -3/Research | Research terminal network offline 34445 | -3/Research | Spotted Executioner 34446 | -3/Research | Spotted Striker 34466 | -3/Research | Destroyed Executioner 34504 | -3/Research | Lost 3 allies 34519 | -3/Research | Found Corrupted Adv. Kinecellerator 34615 | -3/Research | Entered Armory 35215 | -3/Armory | Build established: Scavenger-Tank 35645 | -3/Armory | Identified Transdimensional Reconstructor 35645 | -3/Armory | Warped through subspace to slip node 35645 | -3/Armory | Discovered new exit (range 1) 35819 | -3/Armory | Discovered exit to Research (range 3) 36072 | -3/Armory | Spotted Armor Guard 36072 | -3/Armory | Spotted Armor Guard 36107 | -3/Armory | Destroyed Armor Guard 36150 | -3/Armory | Destroyed Armor Guard 36161 | -3/Armory | Found Corrupted Prototype Device 36161 | -3/Armory | Identified Exp. Weapon Cycler 36162 | -3/Armory | System corruption reached 10% 36169 | -3/Armory | Lost 5 parts (1n2u2w) 36180 | -3/Armory | Found Exp. Weapon Cycler 36221 | -3/Armory | Found Superdense Plating 36337 | -3/Armory | Entered Lab 36337 | -3/Lab | Discovered exit to Research (range 10) 36370 | -3/Lab | Hidden lab's door opened automatically 36370 | -3/Lab | Sensor layout match revealed 36371 | -3/Lab | Gained access to the hidden lab's interior 36450 | -3/Lab | Found Med. Regenerative Plating 36455 | -3/Lab | Found Prototype Hackware 36546 | -3/Lab | Found Alien Artifact 36628 | -3/Lab | Build established: Scavenger-Mutant 36650 | -3/Lab | Found Alien Artifact 36678 | -3/Lab | Found Prototype Energy Cannon 36689 | -3/Lab | Found Prototype Energy Cannon 36722 | -3/Lab | Found Integrated Reactor 36722 | -3/Lab | Installed Integrated Reactor, increased core energy generation (+10) 36949 | -3/Lab | Found Transdimensional Reconstructor 37081 | -3/Lab | Identified Potential Cannon 37083 | -3/Lab | Identified Warp Cannon 37151 | -3/Lab | Entered Research 37151 | -2/Research | Evolved 2 slots: Utility x2 37233 | -2/Research | Identified Deep Network Scanner 37356 | -2/Research | Spotted B-90 Cyclops 37360 | -2/Research | Garrison activated, responded to threat 37361 | -2/Research | Warped through subspace 37378 | -2/Research | Destroyed 9 combat bots 37390 | -2/Research | Build established: Scavenger-Tank 37725 | -2/Research | Destroyed 9 combat bots 37987 | -2/Research | Found Unknown Device 37987 | -2/Research | Identified Launcher Loader 38057 | -2/Research | Identified Core Regenerator 38057 | -2/Research | Identified Core Reset Matrix 38361 | -2/Research | Garrison activated, responded to threat 38401 | -2/Research | First assault squad dispatched 38782 | -2/Research | Unchained authorized (QV-33N) 38795 | -2/Research | System corruption reached 10% 38852 | -2/Research | Build established: Hacker-Gunner 39095 | -2/Research | Incoming investigation squad redirected 39149 | -2/Research | Lost 7 parts (2u5w) 39169 | -2/Research | Destroyed 15 combat bots 39248 | -2/Research | Lost 4 parts (1p1u2w) 39263 | -2/Research | Build established: Scavenger-Gunner 39313 | -2/Research | Incoming assault squad redirected 39388 | -2/Research | Central database locked down 39485 | -2/Research | Fabricated Combat Drone Bay? 39519 | -2/Research | Incoming assault squad redirected 39562 | -2/Research | Lost 3 parts (3u) 39671 | -2/Research | Incoming assault squad redirected 39828 | -2/Research | Destroyed 7 combat bots 39923 | -2/Research | Incoming assault squad redirected 40069 | -2/Research | High security lockdown imminent 40108 | -2/Research | Core integrity fell below 50% 40120 | -2/Research | Used Core Regenerator, restored core integrity (+362) 40129 | -2/Research | Destroyed 8 combat bots 40149 | -2/Research | High security lockdown engaged 40161 | -2/Research | Lost 9 parts (1p6n2w) 40187 | -2/Research | Spotted B-90 Cyclops 40198 | -2/Research | Discovered new exit (range 22) 40215 | -2/Research | Entered Access 40215 | -1/Access | Evolved 2 slots: Propulsion x2 40394 | -1/Access | Spotted B-99 Colossus 40427 | -1/Access | Core integrity fell below 50% 40438 | -1/Access | Lost 14 parts (5n7u2w) 40465 | -1/Access | First assault squad dispatched 40478 | -1/Access | Core integrity fell below 20% 40488 | -1/Access | High security lockdown imminent 40568 | -1/Access | High security lockdown engaged 40577 | -1/Access | Destroyed by Y-72 Warden with Quantum Rifle Last Messages --------------- 40482_ P-80 Master Gamma Rifle severed. 40482_ Terminal disabled. 40484_ P-80 Master destroyed. 40487_ System corrupted: Heat flow error (+220). 40488_ P-80 Master destroyed. 40488_ ALERT: High security lockdown imminent, T-100. 40491_ Acquired Adv. Target Analyzer. 40493_ Acquired 20 matter. 40494_ Acquired Adv. Remote Datajack. 40495_ Acquired 10 matter. 40496_ Dropped Adv. Remote Datajack. 40500_ Slammed into G-73 Enforcer. 40501_ R-10 Processor collects Sml. Battery. 40513_ System corrupted: Component data lost. 40520_ Acquired Adv. Medium Treads. 40531_ System corrupted: Heat flow error (+242). 40538_ ALERT: Machine network offline. 40553_ ALERT: Performing unscheduled system reset. 40567_ System corrupted: Component data lost. 40568_ ALERT: Lockdown in effect, collecting threat data. Map ----- +----------------------------------------------------+ | ??????????????????????????# + #???????? | | ??????????????????????????# # #???????? | | ??????????????????????????# # #???????? | | ??????????????????????????#"" # #???????? | | ??????????????????????????#"" # #???????? | | ??????????????????????????#"" # #???????? | | ??????????????????????????#S # #???????? | | ??????????????????????????#"" # +???????? | | ??????????????????????????#"" # #???????? | | ??????????????????????????#"" # #???????? | | ??????????????????????????# # #######?? | | ??????????????????????????# # #?? | | ??????????????????????????##/####" #?? | | ???????????????????????????# #??## ### | | ???????????????????????????# #???# | | ????????????????????#####?? ???# | | ????????????????????# ### | | ????????????????????# | | ????????????????????# ######+#####+## ### | | ????????????????????# ## # ## #?# | | ????????????????????# ######## ## #?# | | ????????????????????# # # ##+### | | ????????????????????# # = # # # | | ????????????????????# # # " # # | | ????????????????????# # # """" # # | | ????????????????????# #@ *# """"" # # | | ????????????????????+ + # """"" # + | | ????????????????????# # # """" # # | | ????????????????????# # # " # # | | ????????????????????# # !! # # # | | ????????????????????# # !! ] # # # | | ????????????????????# # !! ################### | | ???????############?# # # #?????# | | ???????# ?# # # #?????# | | ???????# # ###Y#### #?????# | | ???????+ [ # #??##??# #?????# | | ???????# + #??????# ??????# | | ???????# # #??????? ????????# | | ???????############## ###??????? ??????????# | | ??????????????????# ##########+############# | | ???????############ * | | ???# | | ???+ | | ???# | | ???###+############ | | ??????????????????# ###+#################### | | ??????????????????######### ?????????????????? | | ??????????????????????????# ???????????????? | | ??????????????????????????# ?????????????? | | ??????????????????????????# """ #????????????? | +----------------------------------------------------+ Best States ------------- Heat Dissipation 153 Energy Generation 79 Energy Capacity 700 Matter Stores 300 Matter Capacity 600 Sight Range 23 Robot Scan Range 20 Terrain Scan Range 30 Terrain Scan Density 210 Jamming Range 16 Power Amplification 30 Base Temperature (-) 200 EM Shielding 4 Armor Coverage 600 Resistance: KI 30 Resistance: EM 75 Weapon Cycling 30 Evasion (%) 70 Targeting Accuracy 12 Target Analysis 8 Core Analysis 11 Armor Integrity Analysis 40 Recoil Reduction 6 Particle Charging 25 Kinecelleration 50 Salvage Targeting 4 Offensive Hacking 37 Defensive Hacking 14 Authchip Count 1 Item Schematics ----------------- Shotgun | -9/Materials | Extracted Lgt. Armor Plating | -9/Materials | Extracted Imp. Medium Laser | -9/Materials | Extracted Hrd. Light Armor Plating | -9/Materials | Extracted Med. Storage Unit | -9/Materials | Extracted Beam Rifle | -9/Materials | Extracted Mni. Grenade Launcher | -9/Materials | Extracted Field Laser | -8/Materials | Extracted Shield Generator | -8/Materials | Extracted Combat Drone Bay | -7/Data Miner | Free Lgt. Regenerative Plating | -7/Data Miner | Free Cld. Cesium-ion Thruster | -7/Data Miner | Free Exp. Targeting Computer | -7/Data Miner | Free Imp. Lightning Gun | -7/Data Miner | Free Gyrokinetic Inverter | -7/Data Miner | Free Imp. Arc Projector | -7/Data Miner | Free Lrn. Tractor Beam | -7/Data Miner | Free Adv. Transmission Jammer | -6/Hub_04(d) | Hacked Centrium Heavy Treads | -5/Factory | Scanalyzed Assault Drone Bay | -4/Zhirov | Free Exp. Heat Sink | -4/Zhirov | Free Exp. Optical Array | -4/Zhirov | Free Imp. Arc Thrower | -4/Zhirov | Free Robot Schematics ------------------ M-22 Extractor | -7/Data Miner | Free A-15 Conveyor | -7/Data Miner | Free D-53 Grenadier | -7/Data Miner | Free L-41 Fighter | -7/Data Miner | Free S-27 Virus | -7/Data Miner | Free H-66 Slayer | -7/Data Miner | Free M-13 Machinist | -4/Factory | Hacked Fabricated ------------ Combat Drone Bay | x1 | -5/Factory Combat Drone Bay | x1 | -2/Research Repaired ---------- Lgt. Treads | 4% | -9/Materials Hvy. Assault Rifle | 15% | -8/Materials Minigun | 12% | -6/Factory Centrium Heavy Treads | 10% | -5/Factory Centrium Heavy Treads | 13% | -5/Factory Adv. KE Penetrator | 13% | -5/Factory Adv. KE Penetrator | 48% | -5/Factory Centrium Heavy Treads | 42% | -5/Factory | Broken Exp. Cooling System | 21% | -5/Factory Quantum Reactor | 5% | -5/Factory Adv. KE Penetrator | 39% | -5/Factory Adv. KE Penetrator | 48% | -5/Factory Centrium Heavy Treads | 52% | -5/Factory Lrn. Missile Launcher | 48% | -5/Factory Studied --------- Imp. Ion Engine | -9/Materials | Hacked Assault Rifle | -9/Materials | Hacked Lgt. Treads | -9/Materials | Hacked Hvy. Assault Rifle | -9/Materials | Hacked Lgt. Assault Rifle | -9/Materials | Hacked Arm. Treads | -8/Materials | Hacked KE Penetrator | -5/Factory | Hacked Lrn. Missile Launcher | -5/Factory | Hacked Gamma Rifle | -3/Research | Hacked Quantum Reactor | -2/Research | Hacked Centrium Leg | -2/Research | Hacked Enh. Quantum Rifle | -2/Research | Hacked Alien Tech Used ----------------- Integrated Reactor Transdimensional Reconstructor Core Regenerator Achievements -------------- Fishing Tech Follow The Leader Look Less Dangerous Next Time Tank Life Challenges ------------ None Game ------ Seed ModifiedDiametricClaw Manual? 0 Play Time 06:30:36 Cumulative 735.7 hours Start 2026.01.05 @ 01:25:02 End 2026.01.06 @ 21:47:56 Sessions 5 Manual Loads 0 Difficulty Rogue Special Mode None Game No. 234 Rogue 218 Adventurer 15 Explorer 1 Win Type - Total 42 Types 11/5/10/2/2/0/6/3/1/2 Lore% 96 Gallery% 91 Achievement% 73 Wizard Run 0 Options --------- Layout 0 ASCII 0 Keyboard 0 Movement Numpad Keybinds 0 Fullscreen 1 Font 18/SmallcapsGlow Map View 76x50 Zoom Use 0% Tactical HUD 1 Map Filters NONE Filters NONE Steam 1 RUN: 7685d671-3942-4a25-ad93-73c97498d18c